{"text_format":"1","workbook":"xlsx","n_sheets":6,"sheets":["National & Regional Team","Provider - All","Provider - Site","Provider - By Type","Commissioner","Notes"],"not_rendered":{"charts":0,"images":0,"macros":1,"external_links":0,"defined_names":28,"comments":0,"pivot_tables":0},"unopened":[],"bounds":{"document_bytes":16777216,"sheet_cells":100000,"rows_first":2000,"rows_last":500,"rows_between":2000,"halvings":0,"cell_chars":16384,"cell_head_chars":4096},"cells_cut":0,"cells_raw":0,"read":"whole","date_system":"1900"}

{"sheet":"National & Regional Team","index":0,"n_rows":36,"n_cols":6,"rows_kept":36,"cut":false,"hidden":false,"merged":[[36,1,38,5],[29,1,29,5],[31,1,31,5],[27,1,27,5],[33,1,33,5],[35,1,35,5]]}
[]
[null,"Title:","Mixed-Sex Accommodation"]
[null,"Summary:","The total occurrences of unjustified mixing in relation to sleeping accommodation."]
[]
[null,"Period:","December 2019"]
[null,"Sources:","MSA, collected via SDCS, NHS England and NHS Improvement (MSA breaches)"]
[null,null,"Hospital Episode Statistics (HES), NHS Digital (FCE data)"]
[null,"Basis:","Provider"]
[null,"Published:","13th February 2020"]
[null,"Revised:","-"]
[null,"Status:","Published"]
[null,"Contact:","Katie Tither - england.nhsdata@nhs.net"]
[]
[null,"National & Regional Level Data"]
[null,"Region Code","Region Name","MSA Breaches1","Finished Consultant Episodes2\n(from previous year)","Breach Rate3"]
[null,"-","England",2054,1655793,{"$f":"ROUND(D16/E16*1000,1)","v":1.2}]
[]
[null,"Y56","London Commissioning Region",238,229110,{"$f":"ROUND((D18/E18)*1000,1)","v":1}]
[null,"Y58","South West Commissioning Region",201,170120,{"$f":"ROUND((D19/E19)*1000,1)","v":1.2}]
[null,"Y59","South East Commissioning Region",1083,236730,4.5999999999999996]
[null,"Y60","Midlands Commissioning Region",207,322620,0.6]
[null,"Y61","East of England Commissioning Region",116,188915,0.6]
[null,"Y62","North West Commissioning Region",193,229125,0.8]
[null,"Y63","North East and Yorkshire Commissioning Region",11,266635,0]
[null,"X24","NHS England",5,"N/A","N/A"]
[]
[null,"Notes:"]
[null,"1. In September 2019 a revised policy, \"Delivering same-sex accommodation\" was published. Data providers were asked to ensure reporting of MSA breaches for the purposes of this collection were in line with the revised policy by January 2020. This transition period allows providers to make appropriate changes to enable them to report on this basis. As such this may impact on data quality for September - December 2019 data. Providers should all be reporting consistently and as per the updated guidance by January 2020. "]
[]
[null,"2. Finished Consultant Episode (FCE) data from Hospital Episode Statistics (HES) are used to calculate the MSA breach rate (for further details on methodology of this calculation see footnote 2). The FCE data presented here are a snapshot of latest HES data available at the time of the MSA publication for the relevant data period (due to timings of HES publication in some months this will represent \"final\" HES data, however for some months this is \"provisional\" HES data). These are used solely for the purposes of calculating an MSA breach rate to allow comparisons across providers and of change over time.\n\nFrom 2017/18 onwards, at the point of publication of MSA revisions (every 6 months), the FCE denominator is updated to reflect final HES data where available so is subject to change and may not match always the published HES timeseries (where provisional data is updated on a monthly basis).  The official and most recent timeseries of HES data is available on the NHS Digital website which will reflect any more recent updates to the provisional HES FCE data. https://digital.nhs.uk/data-and-information/publications/statistical/hospital-episode-statistics-for-admitted-patient-care-outpatient-and-accident-and-emergency-data\n\nRegional level FCE data is displayed accordance with HES disclosure control methodology. \nhttps://digital.nhs.uk/binaries/content/assets/website-assets/data-and-information/data-tools-and-services/data-services/hospital-episode-statistics/hes_analysis_guide_september_2018-v1.1.pdf\n\nHES Disclosure Control\nIn order to protect patient confidentiality '*' appears in the table above for all sub-national breakdowns, where it is possible to calculate a value between 1 and 7 from the data presented. All other sub-national data has been rounded to the nearest 5.\n\nIf the national total is between 1 and 7 (inclusive), no sub-national breakdown will be displayed. \n\nIf the national total is greater than or equal to 8;\na. Sub-national counts between 1 and 7 (inclusive) will be displayed as ’*’.\nb. Zeroes will be unchanged.\nc. All other counts will be rounded to the nearest 5."]
[]
[null,"3. The MSA breach rate is the number of MSA breaches, per 1,000 finished consultant episodes. Due to timeliness of HES data, there is one year’s lag in the denominator data, compared to the MSA breaches. For example, the breach rate for June 2019 is calculated by dividing the total MSA breaches in June 2019 (numerator) by the number of Finished Consultant Episodes in June 2018 (denominator). As such, it is only an estimation. Please see Breach Rate methodology paper for further information via: http://www.england.nhs.uk/statistics/mixed-sex-accommodation/\n\nWhen calculating rates or percentages at regional level using HES data;\n1) Where the numerator or denominator is between 1 and 7 (inclusive), no percentage or rate is calculated, and a ’*’ will be displayed.\n2) Where the numerator is zero, the percentage will be 0%.\n3) Where the unrounded numerator and denominator are greater than or equal to 8, a percentage or rate is calculated using the rounded numerator or denominator.\n4).Where no denominator data is available, no percentage or rate is calculated, and ’N/A’ will be displayed."]
[]
[null,"4. From January 2020 publication (November 2019 data) onwards:\n- The number of MSA breaches attributable to each regional team has been aggregated based on the commissioner of care; previously this was     aggregated based on the provider of care\n- Breaches for Non-English commissioned patients are excluded"]
[]
[null,"5. Sandwell and West Birmingham Hospitals NHS Trust (RXK) and Epsom and St Helier University Hospitals Trust (RVR) did not submit data for December 2019 due to data quality issues. "]

{"sheet":"Provider - All","index":1,"n_rows":255,"n_cols":8,"rows_kept":255,"cut":false,"hidden":false,"merged":[[254,1,254,7],[244,1,244,7],[252,1,252,7],[246,1,246,7],[248,1,248,7],[250,1,250,7]]}
[]
[null,"Title:","Mixed-Sex Accommodation"]
[null,"Summary:","The total occurrences of unjustified mixing in relation to sleeping accommodation."]
[]
[null,"Period:",{"$f":"Publicationmonth","v":"December 2019"}]
[null,"Sources:",{"$f":"'National & Regional Team'!C6","v":"MSA, collected via SDCS, NHS England and NHS Improvement (MSA breaches)"}]
[null,null,{"$f":"'National & Regional Team'!C7","v":"Hospital Episode Statistics (HES), NHS Digital (FCE data)"}]
[null,"Basis:","Provider"]
[null,"Published:",{"$f":"Publicationdate","v":"13th February 2020"}]
[null,"Revised:","-"]
[null,"Status:","Published"]
[null,"Contact:","Katie Tither - england.nhsdata@nhs.net"]
[]
[null,"Provider Level Data"]
[null,"Region Code","Region Name","Organisation Code","Organisation Name","MSA Breaches1","Finished Consultant Episodes2\n(from previous year)","Breach Rate3,4"]
[null,"-","-","-","England",2054,1655793,{"$f":"F16/G16*1000","v":1.2404932259044459}]
[]
[null,"Y56","London Commissioning Region","RF4","Barking, Havering and Redbridge University Hospitals NHS Trust",33,12805,{"$f":"(IF(G18=\"*\",\"*\",IF(ISERROR(F18/G18*1000),\"N/A\",ROUND(F18/G18*1000,1))))","v":2.6}]
[null,"Y56","London Commissioning Region","RRP","Barnet, Enfield and Haringey Mental Health NHS Trust",0,"N/A",{"$f":"(IF(G19=\"*\",\"*\",IF(ISERROR(F19/G19*1000),\"N/A\",ROUND(F19/G19*1000,1))))","v":"N/A"}]
[null,"Y56","London Commissioning Region","R1H","Barts Health NHS Trust",26,26490,1]
[null,"Y56","London Commissioning Region","TAF","Camden and Islington NHS Foundation Trust",0,"N/A","N/A"]
[null,"Y56","London Commissioning Region","RV3","Central and North West London NHS Foundation Trust",0,390,0]
[null,"Y56","London Commissioning Region","RYX","Central London Community Healthcare NHS Trust",0,"N/A","N/A"]
[null,"Y56","London Commissioning Region","RQM","Chelsea and Westminster Hospital NHS Foundation Trust",0,13175,0]
[null,"Y56","London Commissioning Region","NV3","Circle",0,3125,0]
[null,"Y56","London Commissioning Region","RJ6","Croydon Health Services NHS Trust",0,6170,0]
[null,"Y56","London Commissioning Region","RWK","East London NHS Foundation Trust",0,705,0]
[null,"Y56","London Commissioning Region","RP4","Great Ormond Street Hospital For Children NHS Foundation Trust",0,3765,0]
[null,"Y56","London Commissioning Region","RJ1","Guy's and St Thomas' NHS Foundation Trust",2,14860,0.1]
[null,"Y56","London Commissioning Region","RQX","Homerton University Hospital NHS Foundation Trust",0,7090,0]
[null,"Y56","London Commissioning Region","RY9","Hounslow and Richmond Community Healthcare NHS Trust",0,35,0]
[null,"Y56","London Commissioning Region","RYJ","Imperial College Healthcare NHS Trust",46,20370,2.2999999999999998]
[null,"Y56","London Commissioning Region","RJZ","King's College Hospital NHS Foundation Trust",0,21580,0]
[null,"Y56","London Commissioning Region","RAX","Kingston Hospital NHS Foundation Trust",0,7605,0]
[null,"Y56","London Commissioning Region","RJ2","Lewisham and Greenwich NHS Trust",0,14355,0]
[null,"Y56","London Commissioning Region","R1K","London North West University Healthcare NHS Trust",82,19205,4.3]
[null,"Y56","London Commissioning Region","RAT","North East London NHS Foundation Trust",0,230,0]
[null,"Y56","London Commissioning Region","RAP","North Middlesex University Hospital NHS Trust",0,7945,0]
[null,"Y56","London Commissioning Region","NT2","Nuffield Health",0,2620,0]
[null,"Y56","London Commissioning Region","RPG","Oxleas NHS Foundation Trust",0,235,0]
[null,"Y56","London Commissioning Region","RT3","Royal Brompton & Harefield NHS Foundation Trust",0,3345,0]
[null,"Y56","London Commissioning Region","RAL","Royal Free London NHS Foundation Trust",35,17490,2]
[null,"Y56","London Commissioning Region","RAN","Royal National Orthopaedic Hospital NHS Trust",18,1195,15.1]
[null,"Y56","London Commissioning Region","RV5","South London and Maudsley NHS Foundation Trust",0,310,0]
[null,"Y56","London Commissioning Region","RQY","South West London and St George's Mental Health NHS Trust",0,305,0]
[null,"Y56","London Commissioning Region","NT3","Spire Healthcare",0,5540,0]
[null,"Y56","London Commissioning Region","RJ7","St George's University Hospitals NHS Foundation Trust",0,13335,0]
[null,"Y56","London Commissioning Region","RAS","The Hillingdon Hospitals NHS Foundation Trust",15,5820,2.6]
[null,"Y56","London Commissioning Region","RPY","The Royal Marsden NHS Foundation Trust",0,1610,0]
[null,"Y56","London Commissioning Region","RRV","University College London Hospitals NHS Foundation Trust",24,14200,1.7]
[null,"Y56","London Commissioning Region","RKL","West London NHS Trust",0,"N/A","N/A"]
[null,"Y56","London Commissioning Region","RKE","Whittington Health NHS Trust",2,4500,0.4]
[null,"Y58","South West Commissioning Region","RVN","Avon and Wiltshire Mental Health Partnership NHS Trust",0,305,0]
[null,"Y58","South West Commissioning Region","RJ8","Cornwall Partnership NHS Foundation Trust",0,475,0]
[null,"Y58","South West Commissioning Region","RWV","Devon Partnership NHS Trust",0,"N/A","N/A"]
[null,"Y58","South West Commissioning Region","RBD","Dorset County Hospital NHS Foundation Trust",8,5345,1.5]
[null,"Y58","South West Commissioning Region","RDY","Dorset Healthcare University NHS Foundation Trust",0,550,0]
[null,"Y58","South West Commissioning Region","RTQ","Gloucestershire Health and Care NHS Foundation Trust",0,400,0]
[null,"Y58","South West Commissioning Region","RTE","Gloucestershire Hospitals NHS Foundation Trust",9,15885,0.6]
[null,"Y58","South West Commissioning Region","RN3","Great Western Hospitals NHS Foundation Trust",91,9775,9.3000000000000007]
[null,"Y58","South West Commissioning Region","NR5","Livewell Southwest",0,155,0]
[null,"Y58","South West Commissioning Region","RVJ","North Bristol NHS Trust",0,14095,0]
[null,"Y58","South West Commissioning Region","NLT","North Somerset Community Partnership Community Interest Company",0,"N/A","N/A"]
[null,"Y58","South West Commissioning Region","RBZ","Northern Devon Healthcare NHS Trust",0,4975,0]
[null,"Y58","South West Commissioning Region","RD3","Poole Hospital NHS Foundation Trust",0,7515,0]
[null,"Y58","South West Commissioning Region","REF","Royal Cornwall Hospitals NHS Trust",0,15485,0]
[null,"Y58","South West Commissioning Region","RH8","Royal Devon and Exeter NHS Foundation Trust",0,12580,0]
[null,"Y58","South West Commissioning Region","RD1","Royal United Hospitals Bath NHS Foundation Trust",0,10870,0]
[null,"Y58","South West Commissioning Region","RNZ","Salisbury NHS Foundation Trust",101,5620,18]
[null,"Y58","South West Commissioning Region","RH5","Somerset Partnership NHS Foundation Trust",0,345,0]
[null,"Y58","South West Commissioning Region","RBA","Taunton and Somerset NHS Foundation Trust",3,9240,0.3]
[null,"Y58","South West Commissioning Region","RDZ","The Royal Bournemouth and Christchurch Hospitals NHS Foundation Trust",0,10140,0]
[null,"Y58","South West Commissioning Region","RA9","Torbay and South Devon NHS Foundation Trust",0,8405,0]
[null,"Y58","South West Commissioning Region","RA7","University Hospitals Bristol NHS Foundation Trust",0,13975,0]
[null,"Y58","South West Commissioning Region","RK9","University Hospitals Plymouth NHS Trust",0,13580,0]
[null,"Y58","South West Commissioning Region","RA3","Weston Area Health NHS Trust",0,3300,0]
[null,"Y58","South West Commissioning Region","AXG","Wiltshire Health & Care",0,80,0]
[null,"Y58","South West Commissioning Region","RA4","Yeovil District Hospital NHS Foundation Trust",0,4500,0]
[null,"Y59","South East Commissioning Region","RTK","Ashford and St Peter's Hospitals NHS Foundation Trust",24,6665,3.6]
[null,"Y59","South East Commissioning Region","RWX","Berkshire Healthcare NHS Foundation Trust",0,260,0]
[null,"Y59","South East Commissioning Region","RXH","Brighton and Sussex University Hospitals NHS Trust",48,11375,{"$f":"(IF(G81=\"*\",\"*\",IF(ISERROR(F81/G81*1000),\"N/A\",ROUND(F81/G81*1000,1))))","v":4.2}]
[null,"Y59","South East Commissioning Region","RXQ","Buckinghamshire Healthcare NHS Trust",0,9765,0]
[null,"Y59","South East Commissioning Region","NTP","Care UK",0,4410,0]
[null,"Y59","South East Commissioning Region","NTV","CSH Surrey",0,75,0]
[null,"Y59","South East Commissioning Region","RN7","Dartford and Gravesham NHS Trust",11,8185,1.3]
[null,"Y59","South East Commissioning Region","RVV","East Kent Hospitals University NHS Foundation Trust",421,16660,25.3]
[null,"Y59","South East Commissioning Region","RXC","East Sussex Healthcare NHS Trust",25,10420,2.4]
[null,"Y59","South East Commissioning Region","NVM","Epsomedical Group",0,395,0]
[null,"Y59","South East Commissioning Region","RDU","Frimley Health NHS Foundation Trust",36,21190,1.7]
[null,"Y59","South East Commissioning Region","RN5","Hampshire Hospitals NHS Foundation Trust",0,10235,0]
[null,"Y59","South East Commissioning Region","R1F","Isle of Wight NHS Trust",9,3145,2.9]
[null,"Y59","South East Commissioning Region","RXY","Kent and Medway NHS and Social Care Partnership Trust",0,295,0]
[null,"Y59","South East Commissioning Region","RYY","Kent Community Health NHS Foundation Trust",0,205,0]
[null,"Y59","South East Commissioning Region","ADP","Kims Hospital",0,460,0]
[null,"Y59","South East Commissioning Region","RWF","Maidstone and Tunbridge Wells NHS Trust",0,10935,0]
[null,"Y59","South East Commissioning Region","RPA","Medway NHS Foundation Trust",74,8810,8.4]
[null,"Y59","South East Commissioning Region","RNU","Oxford Health NHS Foundation Trust",0,290,0]
[null,"Y59","South East Commissioning Region","RTH","Oxford University Hospitals NHS Foundation Trust",54,18595,2.9]
[null,"Y59","South East Commissioning Region","RHU","Portsmouth Hospitals NHS Trust",0,14875,0]
[null,"Y59","South East Commissioning Region","RPC","Queen Victoria Hospital NHS Foundation Trust",0,1640,0]
[null,"Y59","South East Commissioning Region","RHW","Royal Berkshire NHS Foundation Trust",305,14260,21.4]
[null,"Y59","South East Commissioning Region","RA2","Royal Surrey County Hospital NHS Foundation Trust",0,7420,0]
[null,"Y59","South East Commissioning Region","R1C","Solent NHS Trust",0,95,0]
[null,"Y59","South East Commissioning Region","RW1","Southern Health NHS Foundation Trust",0,935,0]
[null,"Y59","South East Commissioning Region","RXX","Surrey and Borders Partnership NHS Foundation Trust",0,245,0]
[null,"Y59","South East Commissioning Region","RTP","Surrey and Sussex Healthcare NHS Trust",0,12110,0]
[null,"Y59","South East Commissioning Region","RDR","Sussex Community NHS Foundation Trust",0,335,0]
[null,"Y59","South East Commissioning Region","RX2","Sussex Partnership NHS Foundation Trust",0,255,0]
[null,"Y59","South East Commissioning Region","RHM","University Hospital Southampton NHS Foundation Trust",0,16665,0]
[null,"Y59","South East Commissioning Region","RYR","Western Sussex Hospitals NHS Foundation Trust",72,13670,5.3]
[null,"Y60","Midlands Commissioning Region","RXT","Birmingham and Solihull Mental Health NHS Foundation Trust",0,240,0]
[null,"Y60","Midlands Commissioning Region","RYW","Birmingham Community Healthcare NHS Foundation Trust",0,430,0]
[null,"Y60","Midlands Commissioning Region","RQ3","Birmingham Women's and Children's NHS Foundation Trust",0,5645,0]
[null,"Y60","Midlands Commissioning Region","TAJ","Black Country Partnership NHS Foundation Trust",0,110,0]
[null,"Y60","Midlands Commissioning Region","RFS","Chesterfield Royal Hospital NHS Foundation Trust",1,8000,0.1]
[null,"Y60","Midlands Commissioning Region","RYG","Coventry and Warwickshire Partnership NHS Trust",0,220,0]
[null,"Y60","Midlands Commissioning Region","RY8","Derbyshire Community Health Services NHS Foundation Trust",0,480,0]
[null,"Y60","Midlands Commissioning Region","RXM","Derbyshire Healthcare NHS Foundation Trust",0,145,0]
[null,"Y60","Midlands Commissioning Region","RYK","Dudley and Walsall Mental Health Partnership NHS Trust",0,"N/A","N/A"]
[null,"Y60","Midlands Commissioning Region","RLT","George Eliot Hospital NHS Trust",0,3910,0]
[null,"Y60","Midlands Commissioning Region","RNQ","Kettering General Hospital NHS Foundation Trust",69,9010,7.7]
[null,"Y60","Midlands Commissioning Region","RT5","Leicestershire Partnership NHS Trust",0,815,0]
[null,"Y60","Midlands Commissioning Region","RY5","Lincolnshire Community Health Services NHS Trust",0,45,0]
[null,"Y60","Midlands Commissioning Region","RP7","Lincolnshire Partnership NHS Foundation Trust",0,90,0]
[null,"Y60","Midlands Commissioning Region","RRE","Midlands Partnership NHS Foundation Trust",0,550,0]
[null,"Y60","Midlands Commissioning Region","RLY","North Staffordshire Combined Healthcare NHS Trust",0,200,0]
[null,"Y60","Midlands Commissioning Region","RNS","Northampton General Hospital NHS Trust",0,10415,0]
[null,"Y60","Midlands Commissioning Region","RP1","Northamptonshire Healthcare NHS Foundation Trust",0,240,0]
[null,"Y60","Midlands Commissioning Region","RX1","Nottingham University Hospitals NHS Trust",0,22740,0]
[null,"Y60","Midlands Commissioning Region","RHA","Nottinghamshire Healthcare NHS Foundation Trust",0,365,0]
[null,"Y60","Midlands Commissioning Region","RK5","Sherwood Forest Hospitals NHS Foundation Trust",0,9125,0]
[null,"Y60","Midlands Commissioning Region","RXW","Shrewsbury and Telford Hospital NHS Trust",27,14255,1.9]
[null,"Y60","Midlands Commissioning Region","R1D","Shropshire Community Health NHS Trust",0,245,0]
[null,"Y60","Midlands Commissioning Region","RJC","South Warwickshire NHS Foundation Trust",0,7495,0]
[null,"Y60","Midlands Commissioning Region","RNA","The Dudley Group NHS Foundation Trust",11,9895,1.1000000000000001]
[null,"Y60","Midlands Commissioning Region","RL1","The Robert Jones and Agnes Hunt Orthopaedic Hospital NHS Foundation Trust",0,1150,0]
[null,"Y60","Midlands Commissioning Region","RRJ","The Royal Orthopaedic Hospital NHS Foundation Trust",0,1125,0]
[null,"Y60","Midlands Commissioning Region","RL4","The Royal Wolverhampton NHS Trust",0,12215,0]
[null,"Y60","Midlands Commissioning Region","RWD","United Lincolnshire Hospitals NHS Trust",0,13660,0]
[null,"Y60","Midlands Commissioning Region","RRK","University Hospitals Birmingham NHS Foundation Trust",10,38100,0.3]
[null,"Y60","Midlands Commissioning Region","RKB","University Hospitals Coventry and Warwickshire NHS Trust",0,16615,0]
[null,"Y60","Midlands Commissioning Region","RTG","University Hospitals of Derby and Burton NHS Foundation Trust",17,25585,0.7]
[null,"Y60","Midlands Commissioning Region","RWE","University Hospitals of Leicester NHS Trust",0,26720,0]
[null,"Y60","Midlands Commissioning Region","RJE","University Hospitals of North Midlands NHS Trust",0,24770,{"$f":"(IF(G144=\"*\",\"*\",IF(ISERROR(F144/G144*1000),\"N/A\",ROUND(F144/G144*1000,1))))","v":0}]
[null,"Y60","Midlands Commissioning Region","RBK","Walsall Healthcare NHS Trust",0,6640,0]
[null,"Y60","Midlands Commissioning Region","RWP","Worcestershire Acute Hospitals NHS Trust",49,14775,3.3]
[null,"Y60","Midlands Commissioning Region","R1A","Worcestershire Health and Care NHS Trust",0,650,0]
[null,"Y60","Midlands Commissioning Region","RLQ","Wye Valley NHS Trust",8,6125,1.3]
[null,"Y61","East of England Commissioning Region","NQ1","Anglian Community Enterprise Community Interest Company (ACE CIC)",0,65,0]
[null,"Y61","East of England Commissioning Region","RDD","Basildon and Thurrock University Hospitals NHS Foundation Trust",0,11740,0]
[null,"Y61","East of England Commissioning Region","RC1","Bedford Hospital NHS Trust",38,6600,5.8]
[null,"Y61","East of England Commissioning Region","RGT","Cambridge University Hospitals NHS Foundation Trust",4,16430,0.2]
[null,"Y61","East of England Commissioning Region","RT1","Cambridgeshire and Peterborough NHS Foundation Trust",0,150,0]
[null,"Y61","East of England Commissioning Region","RWH","East and North Hertfordshire NHS Trust",0,11795,0]
[null,"Y61","East of England Commissioning Region","RDE","East Suffolk and North Essex NHS Foundation Trust",5,19990,0.3]
[null,"Y61","East of England Commissioning Region","R1L","Essex Partnership University NHS Foundation Trust",0,440,0]
[null,"Y61","East of England Commissioning Region","RY4","Hertfordshire Community NHS Trust",0,195,0]
[null,"Y61","East of England Commissioning Region","RWR","Hertfordshire Partnership University NHS Foundation Trust",0,250,0]
[null,"Y61","East of England Commissioning Region","RGP","James Paget University Hospitals NHS Foundation Trust",0,6440,0]
[null,"Y61","East of England Commissioning Region","RC9","Luton and Dunstable University Hospital NHS Foundation Trust",0,11655,0]
[null,"Y61","East of England Commissioning Region","RQ8","Mid Essex Hospital Services NHS Trust",0,8955,0]
[null,"Y61","East of England Commissioning Region","RD8","Milton Keynes University Hospital NHS Foundation Trust",0,8325,0]
[null,"Y61","East of England Commissioning Region","RM1","Norfolk and Norwich University Hospitals NHS Foundation Trust",0,18185,0]
[null,"Y61","East of England Commissioning Region","RMY","Norfolk and Suffolk NHS Foundation Trust",0,285,0]
[null,"Y61","East of England Commissioning Region","RY3","Norfolk Community Health and Care NHS Trust",0,330,0]
[null,"Y61","East of England Commissioning Region","RGN","North West Anglia NHS Foundation Trust",0,13125,0]
[null,"Y61","East of England Commissioning Region","NQA","Provide",0,"N/A","N/A"]
[null,"Y61","East of England Commissioning Region","NVC","Ramsay Healthcare UK Operations Limited",0,11230,0]
[null,"Y61","East of England Commissioning Region","RGM","Royal Papworth Hospital NHS Foundation Trust",0,1590,0]
[null,"Y61","East of England Commissioning Region","RAJ","Southend University Hospital NHS Foundation Trust",0,9660,0]
[null,"Y61","East of England Commissioning Region","RQW","The Princess Alexandra Hospital NHS Trust",6,7240,0.8]
[null,"Y61","East of England Commissioning Region","RCX","The Queen Elizabeth Hospital, King's Lynn, NHS Foundation Trust",25,8155,3.1]
[null,"Y61","East of England Commissioning Region","RWG","West Hertfordshire Hospitals NHS Trust",0,9580,0]
[null,"Y61","East of England Commissioning Region","RGR","West Suffolk NHS Foundation Trust",3,7230,0.4]
[null,"Y62","North West Commissioning Region","RBS","Alder Hey Children's NHS Foundation Trust",0,3830,0]
[null,"Y62","North West Commissioning Region","RXL","Blackpool Teaching Hospitals NHS Foundation Trust",0,10830,0]
[null,"Y62","North West Commissioning Region","RMC","Bolton NHS Foundation Trust",17,7455,2.2999999999999998]
[null,"Y62","North West Commissioning Region","RXA","Cheshire and Wirral Partnership NHS Foundation Trust",0,210,0]
[null,"Y62","North West Commissioning Region","RJR","Countess of Chester Hospital NHS Foundation Trust",2,8655,0.2]
[null,"Y62","North West Commissioning Region","RJN","East Cheshire NHS Trust",26,3445,7.5]
[null,"Y62","North West Commissioning Region","RXR","East Lancashire Hospitals NHS Trust",0,12785,0]
[null,"Y62","North West Commissioning Region","NVG","Fairfield Hospital",0,190,0]
[null,"Y62","North West Commissioning Region","RXV","Greater Manchester Mental Health NHS Foundation Trust",0,"N/A","N/A"]
[null,"Y62","North West Commissioning Region","RW5","Lancashire & South Cumbria NHS Foundation Trust",0,365,0]
[null,"Y62","North West Commissioning Region","RXN","Lancashire Teaching Hospitals NHS Foundation Trust",68,12295,5.5]
[null,"Y62","North West Commissioning Region","RBQ","Liverpool Heart and Chest Hospital NHS Foundation Trust",0,1095,0]
[null,"Y62","North West Commissioning Region","REM","Liverpool University Hospitals NHS Foundation Trust",0,20255,0]
[null,"Y62","North West Commissioning Region","REP","Liverpool Women's NHS Foundation Trust",0,3385,0]
[null,"Y62","North West Commissioning Region","R0A","Manchester University NHS Foundation Trust",1,29925,0]
[null,"Y62","North West Commissioning Region","RW4","Mersey Care NHS Foundation Trust",0,260,0]
[null,"Y62","North West Commissioning Region","RBT","Mid Cheshire Hospitals NHS Foundation Trust",0,7805,0]
[null,"Y62","North West Commissioning Region","RTV","North West Boroughs Healthcare NHS Foundation Trust",0,245,0]
[null,"Y62","North West Commissioning Region","RW6","Pennine Acute Hospitals NHS Trust",21,20245,1]
[null,"Y62","North West Commissioning Region","RT2","Pennine Care NHS Foundation Trust",5,"N/A","N/A"]
[null,"Y62","North West Commissioning Region","RM3","Salford Royal NHS Foundation Trust",0,10520,0]
[null,"Y62","North West Commissioning Region","RVY","Southport and Ormskirk Hospital NHS Trust",15,5740,2.6]
[null,"Y62","North West Commissioning Region","RBN","St Helens and Knowsley Teaching Hospitals NHS Trust",0,13305,0]
[null,"Y62","North West Commissioning Region","RWJ","Stockport NHS Foundation Trust",0,8130,0]
[null,"Y62","North West Commissioning Region","RMP","Tameside and Glossop Integrated Care NHS Foundation Trust",0,5500,0]
[null,"Y62","North West Commissioning Region","RBV","The Christie NHS Foundation Trust",0,1825,0]
[null,"Y62","North West Commissioning Region","REN","The Clatterbridge Cancer Centre NHS Foundation Trust",0,555,0]
[null,"Y62","North West Commissioning Region","RET","The Walton Centre NHS Foundation Trust",0,895,0]
[null,"Y62","North West Commissioning Region","RTX","University Hospitals of Morecambe Bay NHS Foundation Trust",26,8845,2.9]
[null,"Y62","North West Commissioning Region","NQT","Virgin Care Ltd",0,55,0]
[null,"Y62","North West Commissioning Region","NDA","Virgin Care Services Ltd",0,120,0]
[null,"Y62","North West Commissioning Region","RWW","Warrington and Halton Teaching Hospitals NHS Foundation Trust",8,6625,1.2]
[null,"Y62","North West Commissioning Region","RBL","Wirral University Teaching Hospital NHS Foundation Trust",10,12595,0.8]
[null,"Y62","North West Commissioning Region","RRF","Wrightington, Wigan and Leigh NHS Foundation Trust",0,7855,{"$f":"(IF(G208=\"*\",\"*\",IF(ISERROR(F208/G208*1000),\"N/A\",ROUND(F208/G208*1000,1))))","v":0}]
[null,"Y63","North East and Yorkshire Commissioning Region","RCF","Airedale NHS Foundation Trust",2,5945,0.3]
[null,"Y63","North East and Yorkshire Commissioning Region","RFF","Barnsley Hospital NHS Foundation Trust",0,7325,0]
[null,"Y63","North East and Yorkshire Commissioning Region","TAD","Bradford District Care NHS Foundation Trust",0,95,0]
[null,"Y63","North East and Yorkshire Commissioning Region","RAE","Bradford Teaching Hospitals NHS Foundation Trust",0,14055,0]
[null,"Y63","North East and Yorkshire Commissioning Region","RWY","Calderdale and Huddersfield NHS Foundation Trust",0,11190,0]
[null,"Y63","North East and Yorkshire Commissioning Region","NL3","Care Plus Group",0,"N/A","N/A"]
[null,"Y63","North East and Yorkshire Commissioning Region","RXP","County Durham and Darlington NHS Foundation Trust",0,12265,0]
[null,"Y63","North East and Yorkshire Commissioning Region","RX4","Cumbria, Northumberland, Tyne and Wear NHS Foundation Trust",0,255,0]
[null,"Y63","North East and Yorkshire Commissioning Region","RP5","Doncaster and Bassetlaw Teaching Hospitals NHS Foundation Trust",0,12170,0]
[null,"Y63","North East and Yorkshire Commissioning Region","RR7","Gateshead Health NHS Foundation Trust",0,6820,0]
[null,"Y63","North East and Yorkshire Commissioning Region","RCD","Harrogate and District NHS Foundation Trust",0,5195,0]
[null,"Y63","North East and Yorkshire Commissioning Region","RWA","Hull University Teaching Hospitals NHS Trust",0,15085,0]
[null,"Y63","North East and Yorkshire Commissioning Region","RV9","Humber Teaching NHS Foundation Trust",0,210,0]
[null,"Y63","North East and Yorkshire Commissioning Region","RGD","Leeds and York Partnership NHS Foundation Trust",0,150,0]
[null,"Y63","North East and Yorkshire Commissioning Region","RY6","Leeds Community Healthcare NHS Trust",0,10,0]
[null,"Y63","North East and Yorkshire Commissioning Region","RR8","Leeds Teaching Hospitals NHS Trust",4,18680,0.2]
[null,"Y63","North East and Yorkshire Commissioning Region","NL8","Locala Community Partnerships CIC",0,"N/A","N/A"]
[null,"Y63","North East and Yorkshire Commissioning Region","RXF","Mid Yorkshire Hospitals NHS Trust",0,16175,0]
[null,"Y63","North East and Yorkshire Commissioning Region","NQL","Navigo Health and Social Care CIC",0,"N/A","N/A"]
[null,"Y63","North East and Yorkshire Commissioning Region","RNN","North Cumbria Integrated Care NHS Foundation Trust",0,7310,0]
[null,"Y63","North East and Yorkshire Commissioning Region","RVW","North Tees and Hartlepool NHS Foundation Trust",0,9440,0]
[null,"Y63","North East and Yorkshire Commissioning Region","RJL","Northern Lincolnshire and Goole NHS Foundation Trust",0,9700,0]
[null,"Y63","North East and Yorkshire Commissioning Region","RTF","Northumbria Healthcare NHS Foundation Trust",0,13045,0]
[null,"Y63","North East and Yorkshire Commissioning Region","RXE","Rotherham Doncaster and South Humber NHS Foundation Trust",0,200,0]
[null,"Y63","North East and Yorkshire Commissioning Region","RCU","Sheffield Children's NHS Foundation Trust",0,1985,0]
[null,"Y63","North East and Yorkshire Commissioning Region","TAH","Sheffield Health & Social Care NHS Foundation Trust",0,"N/A","N/A"]
[null,"Y63","North East and Yorkshire Commissioning Region","RHQ","Sheffield Teaching Hospitals NHS Foundation Trust",0,22680,0]
[null,"Y63","North East and Yorkshire Commissioning Region","RTR","South Tees Hospitals NHS Foundation Trust",2,14415,0.1]
[null,"Y63","North East and Yorkshire Commissioning Region","R0B","South Tyneside and Sunderland NHS Foundation Trust",0,14145,0]
[null,"Y63","North East and Yorkshire Commissioning Region","RXG","South West Yorkshire Partnership NHS Foundation Trust",0,165,0]
[null,"Y63","North East and Yorkshire Commissioning Region","RX3","Tees, Esk and Wear Valleys NHS Foundation Trust",0,620,0]
[null,"Y63","North East and Yorkshire Commissioning Region","RTD","The Newcastle Upon Tyne Hospitals NHS Foundation Trust",0,20205,0]
[null,"Y63","North East and Yorkshire Commissioning Region","RFR","The Rotherham NHS Foundation Trust",0,6520,0]
[null,"Y63","North East and Yorkshire Commissioning Region","RCB","York Teaching Hospital NHS Foundation Trust",0,17640,0]
[]
[null,"Notes:"]
[null,"1. In September 2019 a revised policy, \"Delivering same-sex accommodation\" was published. Data providers were asked to ensure reporting of MSA breaches for the purposes of this collection were in line with the revised policy by January 2020. This transition period allows providers to make appropriate changes to enable them to report on this basis. As such this may impact on data quality for September - December 2019 data. Providers should all be reporting consistently and as per the updated guidance by January 2020. "]
[]
[null,"2. Finished Consultant Episode (FCE) data from Hospital Episode Statistics (HES) are used to calculate the MSA breach rate (for further details on methodology of this calculation see footnote 2). The FCE data presented here are a snapshot of latest HES data available at the time of the MSA publication for the relevant data period (due to timings of HES publication in some months this will represent \"final\" HES data, however for some months this is \"provisional\" HES data). These are used solely for the purposes of calculating an MSA breach rate to allow comparisons across providers and of change over time.\n\nFrom 2017/18 onwards, at the point of publication of MSA revisions (every 6 months), the FCE denominator is updated to reflect final HES data where available so is subject to change and may not always match the published HES timeseries (where provisional data is updated on a monthly basis).  The official and most recent timeseries of HES data is available on the NHS Digital website which will reflect any more recent updates to the provisional HES FCE data. https://digital.nhs.uk/data-and-information/publications/statistical/hospital-episode-statistics-for-admitted-patient-care-outpatient-and-accident-and-emergency-data\n\nProvider level HES FCE data is suppressed in accordance with HES disclosure control methodology.\nhttps://digital.nhs.uk/binaries/content/assets/website-assets/data-and-information/data-tools-and-services/data-services/hospital-episode-statistics/hes_analysis_guide_september_2018-v1.1.pdf\n\nHES Disclosure Control\nIn order to protect patient confidentiality '*' appears in the table above for all sub-national breakdowns, where it is possible to calculate a value between 1 and 7 from the data presented. All other sub-national data has been rounded to the nearest 5.\n\nIf the national total is between 1 and 7 (inclusive), no sub-national breakdown will be displayed. \n\nIf the national total is greater than or equal to 8;\na. Sub-national counts between 1 and 7 (inclusive) will be displayed as ’*’.\nb. Zeroes will be unchanged.\nc. All other counts will be rounded to the nearest 5."]
[]
[null,"3. The MSA breach rate is the number of MSA breaches, per 1,000 finished consultant episodes. Due to timeliness of HES data, there is one year’s lag in the denominator data, compared to the MSA breaches. For example, the breach rate for June 2019 is calculated by dividing the total MSA breaches in June 2019 (numerator) by the number of Finished Consultant Episodes in June 2018 (denominator). As such, it is only an estimation. Please see Breach Rate methodology paper for further information via: http://www.england.nhs.uk/statistics/mixed-sex-accommodation/\n\nWhen calculating rates or percentages at regional level using HES data;\n1) Where the numerator or denominator is between 1 and 7 (inclusive), no percentage or rate is calculated, and a ’*’ will be displayed.\n2) Where the numerator is zero, the percentage will be 0%.\n3) Where the unrounded numerator and denominator are greater than or equal to 8, a percentage or rate is calculated using the rounded numerator or denominator.\n4).Where no denominator data is available, no percentage or rate is calculated, and ’N/A’ will be displayed."]
[]
[null,"4. The Breach Rate for some organisations - particularly Care Trusts, Community Trusts or Mental Health Providers - may be artificially high due to their reporting of episodes of care. Activity for these organisations may be led by multi-disciplinary teams, which would not necessarily be captured as Finished Consultant Episodes and would therefore potentially be excluded from the denominator, leading to an inflated breach rate estimate."]
[]
[null,"5. From January 2020 publication (November 2019 data) onwards breaches for Non-English commissioned patients are excluded."]
[]
[null,"6. Sandwell and West Birmingham Hospitals NHS Trust (RXK) and Epsom and St Helier University Hospitals Trust (RVR) did not submit data for December 2019 due to data quality issues. "]

{"sheet":"Provider - Site","index":2,"n_rows":104,"n_cols":8,"rows_kept":104,"cut":false,"hidden":false,"merged":[[103,1,103,7],[95,1,95,7],[97,1,97,7],[99,1,99,7],[93,1,93,7],[101,1,101,7]]}
[]
[null,"Title:","Mixed-Sex Accommodation"]
[null,"Summary:","The total occurrences of unjustified mixing in relation to sleeping accommodation."]
[]
[null,"Period:",{"$f":"Publicationmonth","v":"December 2019"}]
[null,"Sources:",{"$f":"'National & Regional Team'!C6","v":"MSA, collected via SDCS, NHS England and NHS Improvement (MSA breaches)"}]
[null,null,{"$f":"'National & Regional Team'!C7","v":"Hospital Episode Statistics (HES), NHS Digital (FCE data)"}]
[null,"Basis:","Provider"]
[null,"Published:",{"$f":"Publicationdate","v":"13th February 2020"}]
[null,"Revised:","-"]
[null,"Status:","Published"]
[null,"Contact:","Katie Tither - england.nhsdata@nhs.net"]
[]
[null,"Provider by Site Data"]
[null,"Region Code","Region Name","Organisation Code","Organisation Name","Hospital Code","Hospital Site Name","MSA Breaches1,2,3,4"]
[null,"-","-","-","England","-","-",2054]
[]
[null,"Y56","London Commissioning Region","RF4","Barking, Havering and Redbridge University Hospitals NHS Trust","RF4DG","King George Hospital - RF4DG",5]
[null,"Y56","London Commissioning Region","RF4","Barking, Havering and Redbridge University Hospitals NHS Trust","RF4QH","Queen's Hospital - RF4QH",28]
[null,"Y56","London Commissioning Region","R1H","Barts Health NHS Trust","R1H13","Mile End Hospital - R1H13",3]
[null,"Y56","London Commissioning Region","R1H","Barts Health NHS Trust","R1HNH","Newham General Hospital - R1HNH",10]
[null,"Y56","London Commissioning Region","R1H","Barts Health NHS Trust","R1H12","The Royal London Hospital - R1H12",1]
[null,"Y56","London Commissioning Region","R1H","Barts Health NHS Trust","R1HKH","Whipps Cross University Hospital - R1HKH",12]
[null,"Y56","London Commissioning Region","RJ1","Guy's and St Thomas' NHS Foundation Trust","RJ122","St Thomas' Hospital - RJ122",2]
[null,"Y56","London Commissioning Region","RYJ","Imperial College Healthcare NHS Trust","RYJ02","Charing Cross Hospital - RYJ02",11]
[null,"Y56","London Commissioning Region","RYJ","Imperial College Healthcare NHS Trust","RYJ03","Hammersmith Hospital - RYJ03",6]
[null,"Y56","London Commissioning Region","RYJ","Imperial College Healthcare NHS Trust","RYJ01","St Mary's Hospital (HQ) - RYJ01",29]
[null,"Y56","London Commissioning Region","R1K","London North West University Healthcare NHS Trust","R1K01","Northwick Park Hospital - R1K01",82]
[null,"Y56","London Commissioning Region","RAL","Royal Free London NHS Foundation Trust","RAL26","Barnet Hospital - RAL26",16]
[null,"Y56","London Commissioning Region","RAL","Royal Free London NHS Foundation Trust","RAL01","Royal Free Hospital - RAL01",19]
[null,"Y56","London Commissioning Region","RAN","Royal National Orthopaedic Hospital NHS Trust","RAN01","The Royal National Orthopaedic Hospital (Stanmore) - RAN01",18]
[null,"Y56","London Commissioning Region","RAS","The Hillingdon Hospitals NHS Foundation Trust","RAS01","Hillingdon Hospital - RAS01",15]
[null,"Y56","London Commissioning Region","RRV","University College London Hospitals NHS Foundation Trust","RRVNQ","National Hospital For Neurology and Neurosurgery, Queen Square - RRVNQ",4]
[null,"Y56","London Commissioning Region","RRV","University College London Hospitals NHS Foundation Trust","RRV03","University College Hospital - RRV03",20]
[null,"Y56","London Commissioning Region","RKE","Whittington Health NHS Trust","RKEQ4","The Whittington Hospital - RKEQ4",2]
[null,"Y58","South West Commissioning Region","RBD","Dorset County Hospital NHS Foundation Trust","RBD01","Dorset County Hospital - RBD01",8]
[null,"Y58","South West Commissioning Region","RTE","Gloucestershire Hospitals NHS Foundation Trust","RTE01","Cheltenham General Hospital - RTE01",4]
[null,"Y58","South West Commissioning Region","RTE","Gloucestershire Hospitals NHS Foundation Trust","RTE03","Gloucestershire Royal Hospital - RTE03",5]
[null,"Y58","South West Commissioning Region","RN3","Great Western Hospitals NHS Foundation Trust","RN325","The Great Western Hospital - RN325",91]
[null,"Y58","South West Commissioning Region","RNZ","Salisbury NHS Foundation Trust","RNZ02","Salisbury District Hospital - RNZ02",101]
[null,"Y58","South West Commissioning Region","RBA","Taunton and Somerset NHS Foundation Trust","RBA11","Musgrove Park Hospital - RBA11",3]
[null,"Y59","South East Commissioning Region","RTK","Ashford and St Peter's Hospitals NHS Foundation Trust","RTK01","St Peter's Hospital - RTK01",24]
[null,"Y59","South East Commissioning Region","RXH","Brighton and Sussex University Hospitals NHS Trust","RXH01","Royal Sussex County Hospital - RXH01",48]
[null,"Y59","South East Commissioning Region","RN7","Dartford and Gravesham NHS Trust","RN707","Darent Valley Hospital - RN707",11]
[null,"Y59","South East Commissioning Region","RVV","East Kent Hospitals University NHS Foundation Trust","RVV01","William Harvey Hospital (Ashford) - RVV01",421]
[null,"Y59","South East Commissioning Region","RXC","East Sussex Healthcare NHS Trust","RXC01","Conquest Hospital - RXC01",18]
[null,"Y59","South East Commissioning Region","RXC","East Sussex Healthcare NHS Trust","RXC02","Eastbourne District General Hospital - RXC02",7]
[null,"Y59","South East Commissioning Region","RDU","Frimley Health NHS Foundation Trust","RDU01","Frimley Park Hospital - RDU01",24]
[null,"Y59","South East Commissioning Region","RDU","Frimley Health NHS Foundation Trust","RDU50","Wexham Park Hospital - RDU50",12]
[null,"Y59","South East Commissioning Region","R1F","Isle of Wight NHS Trust","R1F01","St Mary's Hospital - R1F01",9]
[null,"Y59","South East Commissioning Region","RPA","Medway NHS Foundation Trust","RPA02","Medway Maritime Hospital - RPA02",74]
[null,"Y59","South East Commissioning Region","RTH","Oxford University Hospitals NHS Foundation Trust","RTH02","Churchill Hospital - RTH02",4]
[null,"Y59","South East Commissioning Region","RTH","Oxford University Hospitals NHS Foundation Trust","RTH05","Horton General Hospital - RTH05",11]
[null,"Y59","South East Commissioning Region","RTH","Oxford University Hospitals NHS Foundation Trust","RTH08","John Radcliffe Hospital - RTH08",39]
[null,"Y59","South East Commissioning Region","RHW","Royal Berkshire NHS Foundation Trust","RHW01","Royal Berkshire Hospital - RHW01",305]
[null,"Y59","South East Commissioning Region","RYR","Western Sussex Hospitals NHS Foundation Trust","RYR16","St Richard's Hospital - RYR16",32]
[null,"Y59","South East Commissioning Region","RYR","Western Sussex Hospitals NHS Foundation Trust","RYR18","Worthing Hospital - RYR18",40]
[null,"Y60","Midlands Commissioning Region","RFS","Chesterfield Royal Hospital NHS Foundation Trust","RFSDA","Chesterfield Royal Hospital - RFSDA",1]
[null,"Y60","Midlands Commissioning Region","RNQ","Kettering General Hospital NHS Foundation Trust","RNQ51","Kettering General Hospital - RNQ51",69]
[null,"Y60","Midlands Commissioning Region","RXW","Shrewsbury and Telford Hospital NHS Trust","RXWAS","Royal Shrewsbury Hospital - RXWAS",21]
[null,"Y60","Midlands Commissioning Region","RXW","Shrewsbury and Telford Hospital NHS Trust","RXWAT","The Princess Royal Hospital - RXWAT",6]
[null,"Y60","Midlands Commissioning Region","RNA","The Dudley Group NHS Foundation Trust","RNA01","Russells Hall Hospital - RNA01",11]
[null,"Y60","Midlands Commissioning Region","RRK","University Hospitals Birmingham NHS Foundation Trust","RRK98","Good Hope Hospital - RRK98",10]
[null,"Y60","Midlands Commissioning Region","RTG","University Hospitals of Derby and Burton NHS Foundation Trust","RTG02","Burton Hospital - RTG02",6]
[null,"Y60","Midlands Commissioning Region","RTG","University Hospitals of Derby and Burton NHS Foundation Trust","RTGFG","Royal Derby Hospital - RTGFG",11]
[null,"Y60","Midlands Commissioning Region","RWP","Worcestershire Acute Hospitals NHS Trust","RWP01","Alexandra Hospital - RWP01",18]
[null,"Y60","Midlands Commissioning Region","RWP","Worcestershire Acute Hospitals NHS Trust","RWP50","Worcestershire Royal Hospital - RWP50",31]
[null,"Y60","Midlands Commissioning Region","RLQ","Wye Valley NHS Trust","RLQ01","Hereford County Hospital - RLQ01",8]
[null,"Y61","East of England Commissioning Region","RC1","Bedford Hospital NHS Trust","RC110","Bedford Hospital South Wing - RC110",38]
[null,"Y61","East of England Commissioning Region","RGT","Cambridge University Hospitals NHS Foundation Trust","RGT01","Addenbrooke's Hospital - RGT01",4]
[null,"Y61","East of England Commissioning Region","RDE","East Suffolk and North Essex NHS Foundation Trust","RDEE4","Colchester General Hospital - RDEE4",3]
[null,"Y61","East of England Commissioning Region","RDE","East Suffolk and North Essex NHS Foundation Trust","RDE03","Ipswich Hospital - RDE03",2]
[null,"Y61","East of England Commissioning Region","RQW","The Princess Alexandra Hospital NHS Trust","RQWG0","Princess Alexandra Hospital - RQWG0",6]
[null,"Y61","East of England Commissioning Region","RCX","The Queen Elizabeth Hospital, King's Lynn, NHS Foundation Trust","RCX70","The Queen Elizabeth Hospital - RCX70",25]
[null,"Y61","East of England Commissioning Region","RGR","West Suffolk NHS Foundation Trust","RGR50","West Suffolk Hospital - RGR50",3]
[null,"Y62","North West Commissioning Region","RMC","Bolton NHS Foundation Trust","RMC01","Royal Bolton Hospital - RMC01",17]
[null,"Y62","North West Commissioning Region","RJR","Countess of Chester Hospital NHS Foundation Trust","RJR05","Countess Of Chester Hospital - RJR05",2]
[null,"Y62","North West Commissioning Region","RJN","East Cheshire NHS Trust","RJN71","Macclesfield District General Hospital - RJN71",26]
[null,"Y62","North West Commissioning Region","RXN","Lancashire Teaching Hospitals NHS Foundation Trust","RXN02","Royal Preston Hospital - RXN02",68]
[null,"Y62","North West Commissioning Region","R0A","Manchester University NHS Foundation Trust","R0A07","Wythenshawe Hospital - R0A07",1]
[null,"Y62","North West Commissioning Region","RW6","Pennine Acute Hospitals NHS Trust","RW603","Royal Oldham Hospital - RW603",21]
[null,"Y62","North West Commissioning Region","RT2","Pennine Care NHS Foundation Trust","RT203","Royal Oldham Hospital Mental Health Services - RT203",3]
[null,"Y62","North West Commissioning Region","RT2","Pennine Care NHS Foundation Trust","RT205","Stepping Hill Hospital Mental Health Services - RT205",2]
[null,"Y62","North West Commissioning Region","RVY","Southport and Ormskirk Hospital NHS Trust","RVY01","Southport and Formby District General Hospital - RVY01",15]
[null,"Y62","North West Commissioning Region","RTX","University Hospitals of Morecambe Bay NHS Foundation Trust","RTXBU","Furness General Hospital - RTXBU",11]
[null,"Y62","North West Commissioning Region","RTX","University Hospitals of Morecambe Bay NHS Foundation Trust","RTX02","Royal Lancaster Infirmary - RTX02",15]
[null,"Y62","North West Commissioning Region","RWW","Warrington and Halton Teaching Hospitals NHS Foundation Trust","RWWWH","Warrington Hospital - RWWWH",8]
[null,"Y62","North West Commissioning Region","RBL","Wirral University Teaching Hospital NHS Foundation Trust","RBL14","Arrowe Park Hospital - RBL14",10]
[null,"Y63","North East and Yorkshire Commissioning Region","RCF","Airedale NHS Foundation Trust","RCF22","Airedale General Hospital - RCF22",2]
[null,"Y63","North East and Yorkshire Commissioning Region","RR8","Leeds Teaching Hospitals NHS Trust","RR813","St James's University Hospital - RR813",4]
[null,"Y63","North East and Yorkshire Commissioning Region","RTR","South Tees Hospitals NHS Foundation Trust","RTRAT","The James Cook University Hospital - RTRAT",2]
[]
[null,"Notes:"]
[null,"1. In September 2019 a revised policy, \"Delivering same-sex accommodation\" was published. Data providers were asked to ensure reporting of MSA breaches for the purposes of this collection were in line with the revised policy by January 2020. This transition period allows providers to make appropriate changes to enable them to report on this basis. As such this may impact on data quality for September - December 2019 data. Providers should all be reporting consistently and as per the updated guidance by January 2020. "]
[]
[null,"2. MSA breach data was collected by provider organisations for the first time in December 2010. Figures published during the early months of the collection from December 2010 to March 2011 should be treated with a degree of caution as providers were implementing and embedding new data collection procedures.\n\nFrom April 2011 MSA data are mandatory for all NHS providers and flat-rate fines for MSA breaches have been built into organisations’ contracts. Therefore it is expected that MSA data collection processes are now fully embedded in the NHS and that the data submitted from April 2011 onwards is of a higher quality than in previous months."]
[]
[null,"3. Only those provider sites for which one or more breaches were reported are displayed.  Those sites with zero breaches and for organisations where data was not returned are excluded."]
[]
[null,"4. A breach rate is not calculated for the site-level data, as reliable activity data for the denominator in the breach rate calculation is not available at site level."]
[]
[null,"5. From January 2020 publication (November 2019 data) onwards breaches for Non-English commissioned patients are excluded."]
[]
[null,"6. Sandwell and West Birmingham Hospitals NHS Trust (RXK) and Epsom and St Helier University Hospitals Trust (RVR) did not submit data for December 2019 due to data quality issues. "]

{"sheet":"Provider - By Type","index":3,"n_rows":266,"n_cols":8,"rows_kept":266,"cut":false,"hidden":false,"merged":[[255,1,255,7],[265,1,265,7],[263,1,263,7],[257,1,257,7],[259,1,259,7],[261,1,261,7]]}
[]
[null,"Title:","Mixed-Sex Accommodation"]
[null,"Summary:","The total occurrences of unjustified mixing in relation to sleeping accommodation."]
[]
[null,"Period:",{"$f":"Publicationmonth","v":"December 2019"}]
[null,"Sources:",{"$f":"'National & Regional Team'!C6","v":"MSA, collected via SDCS, NHS England and NHS Improvement (MSA breaches)"}]
[null,null,{"$f":"'National & Regional Team'!C7","v":"Hospital Episode Statistics (HES), NHS Digital (FCE data)"}]
[null,"Basis:","Provider"]
[null,"Published:",{"$f":"Publicationdate","v":"13th February 2020"}]
[null,"Revised:","-"]
[null,"Status:","Published"]
[null,"Contact:","Katie Tither - england.nhsdata@nhs.net"]
[]
[null,"Acute Provider Level Data"]
[null,"Region Code","Region Name","Organisation Code","Organisation Name","MSA Breaches1","Finished Consultant Episodes2\n(from previous year)","Breach Rate3,4"]
[null,"-","-","-","All Acute Providers",2049,1569870,{"$f":"ROUND(F16/G16*1000,1)","v":1.3}]
[]
[null,"Y56","London Commissioning Region","RF4","Barking, Havering And Redbridge University Hospitals NHS Trust",33,12805,{"$f":"IF(G18=\"*\",\"*\",IF(ISERROR(F18/G18*1000),\"N/A\",(ROUND(F18/G18*1000,1))))","v":2.6}]
[null,"Y56","London Commissioning Region","R1H","Barts Health NHS Trust",26,26490,{"$f":"IF(G19=\"*\",\"*\",IF(ISERROR(F19/G19*1000),\"N/A\",(ROUND(F19/G19*1000,1))))","v":1}]
[null,"Y56","London Commissioning Region","RQM","Chelsea And Westminster Hospital NHS Foundation Trust",0,13175,0]
[null,"Y56","London Commissioning Region","RJ6","Croydon Health Services NHS Trust",0,6170,0]
[null,"Y56","London Commissioning Region","RP4","Great Ormond Street Hospital For Children NHS Foundation Trust",0,3765,0]
[null,"Y56","London Commissioning Region","RJ1","Guy's And St Thomas' NHS Foundation Trust",2,14860,0.1]
[null,"Y56","London Commissioning Region","RQX","Homerton University Hospital NHS Foundation Trust",0,7090,0]
[null,"Y56","London Commissioning Region","RYJ","Imperial College Healthcare NHS Trust",46,20370,2.2999999999999998]
[null,"Y56","London Commissioning Region","RJZ","King's College Hospital NHS Foundation Trust",0,21580,0]
[null,"Y56","London Commissioning Region","RAX","Kingston Hospital NHS Foundation Trust",0,7605,0]
[null,"Y56","London Commissioning Region","RJ2","Lewisham And Greenwich NHS Trust",0,14355,0]
[null,"Y56","London Commissioning Region","R1K","London North West University Healthcare NHS Trust",82,19205,4.3]
[null,"Y56","London Commissioning Region","RAP","North Middlesex University Hospital NHS Trust",0,7945,0]
[null,"Y56","London Commissioning Region","RT3","Royal Brompton & Harefield NHS Foundation Trust",0,3345,0]
[null,"Y56","London Commissioning Region","RAL","Royal Free London NHS Foundation Trust",35,17490,2]
[null,"Y56","London Commissioning Region","RAN","Royal National Orthopaedic Hospital NHS Trust",18,1195,15.1]
[null,"Y56","London Commissioning Region","RJ7","St George's University Hospitals NHS Foundation Trust",0,13335,0]
[null,"Y56","London Commissioning Region","RAS","The Hillingdon Hospitals NHS Foundation Trust",15,5820,2.6]
[null,"Y56","London Commissioning Region","RPY","The Royal Marsden NHS Foundation Trust",0,1610,0]
[null,"Y56","London Commissioning Region","RRV","University College London Hospitals NHS Foundation Trust",24,14200,1.7]
[null,"Y56","London Commissioning Region","RKE","Whittington Health NHS Trust",2,4500,0.4]
[null,"Y58","South West Commissioning Region","RBD","Dorset County Hospital NHS Foundation Trust",8,5345,1.5]
[null,"Y58","South West Commissioning Region","RTE","Gloucestershire Hospitals NHS Foundation Trust",9,15885,0.6]
[null,"Y58","South West Commissioning Region","RN3","Great Western Hospitals NHS Foundation Trust",91,9775,9.3000000000000007]
[null,"Y58","South West Commissioning Region","RVJ","North Bristol NHS Trust",0,14095,0]
[null,"Y58","South West Commissioning Region","RBZ","Northern Devon Healthcare NHS Trust",0,4975,0]
[null,"Y58","South West Commissioning Region","RD3","Poole Hospital NHS Foundation Trust",0,7515,0]
[null,"Y58","South West Commissioning Region","REF","Royal Cornwall Hospitals NHS Trust",0,15485,0]
[null,"Y58","South West Commissioning Region","RH8","Royal Devon And Exeter NHS Foundation Trust",0,12580,0]
[null,"Y58","South West Commissioning Region","RD1","Royal United Hospitals Bath NHS Foundation Trust",0,10870,0]
[null,"Y58","South West Commissioning Region","RNZ","Salisbury NHS Foundation Trust",101,5620,18]
[null,"Y58","South West Commissioning Region","RBA","Taunton And Somerset NHS Foundation Trust",3,9240,0.3]
[null,"Y58","South West Commissioning Region","RDZ","The Royal Bournemouth And Christchurch Hospitals NHS Foundation Trust",0,10140,0]
[null,"Y58","South West Commissioning Region","RA9","Torbay And South Devon NHS Foundation Trust",0,8405,0]
[null,"Y58","South West Commissioning Region","RA7","University Hospitals Bristol NHS Foundation Trust",0,13975,0]
[null,"Y58","South West Commissioning Region","RK9","University Hospitals Plymouth NHS Trust",0,13580,0]
[null,"Y58","South West Commissioning Region","RA3","Weston Area Health NHS Trust",0,3300,0]
[null,"Y58","South West Commissioning Region","RA4","Yeovil District Hospital NHS Foundation Trust",0,4500,0]
[null,"Y59","South East Commissioning Region","RTK","Ashford And St Peter's Hospitals NHS Foundation Trust",24,6665,3.6]
[null,"Y59","South East Commissioning Region","RXH","Brighton And Sussex University Hospitals NHS Trust",48,11375,4.2]
[null,"Y59","South East Commissioning Region","RXQ","Buckinghamshire Healthcare NHS Trust",0,9765,0]
[null,"Y59","South East Commissioning Region","RN7","Dartford And Gravesham NHS Trust",11,8185,1.3]
[null,"Y59","South East Commissioning Region","RVV","East Kent Hospitals University NHS Foundation Trust",421,16660,25.3]
[null,"Y59","South East Commissioning Region","RXC","East Sussex Healthcare NHS Trust",25,10420,2.4]
[null,"Y59","South East Commissioning Region","RDU","Frimley Health NHS Foundation Trust",36,21190,1.7]
[null,"Y59","South East Commissioning Region","RN5","Hampshire Hospitals NHS Foundation Trust",0,10235,0]
[null,"Y59","South East Commissioning Region","R1F","Isle Of Wight NHS Trust",9,3145,2.9]
[null,"Y59","South East Commissioning Region","RWF","Maidstone And Tunbridge Wells NHS Trust",0,10935,0]
[null,"Y59","South East Commissioning Region","RPA","Medway NHS Foundation Trust",74,8810,8.4]
[null,"Y59","South East Commissioning Region","RTH","Oxford University Hospitals NHS Foundation Trust",54,18595,2.9]
[null,"Y59","South East Commissioning Region","RHU","Portsmouth Hospitals NHS Trust",0,14875,0]
[null,"Y59","South East Commissioning Region","RPC","Queen Victoria Hospital NHS Foundation Trust",0,1640,0]
[null,"Y59","South East Commissioning Region","RHW","Royal Berkshire NHS Foundation Trust",305,14260,21.4]
[null,"Y59","South East Commissioning Region","RA2","Royal Surrey County Hospital NHS Foundation Trust",0,7420,0]
[null,"Y59","South East Commissioning Region","RTP","Surrey And Sussex Healthcare NHS Trust",0,12110,0]
[null,"Y59","South East Commissioning Region","RHM","University Hospital Southampton NHS Foundation Trust",0,16665,0]
[null,"Y59","South East Commissioning Region","RYR","Western Sussex Hospitals NHS Foundation Trust",72,13670,5.3]
[null,"Y60","Midlands Commissioning Region","RQ3","Birmingham Women's And Children's NHS Foundation Trust",0,5645,0]
[null,"Y60","Midlands Commissioning Region","RFS","Chesterfield Royal Hospital NHS Foundation Trust",1,8000,0.1]
[null,"Y60","Midlands Commissioning Region","RLT","George Eliot Hospital NHS Trust",0,3910,0]
[null,"Y60","Midlands Commissioning Region","RNQ","Kettering General Hospital NHS Foundation Trust",69,9010,7.7]
[null,"Y60","Midlands Commissioning Region","RNS","Northampton General Hospital NHS Trust",0,10415,0]
[null,"Y60","Midlands Commissioning Region","RX1","Nottingham University Hospitals NHS Trust",0,22740,0]
[null,"Y60","Midlands Commissioning Region","RK5","Sherwood Forest Hospitals NHS Foundation Trust",0,9125,{"$f":"IF(G81=\"*\",\"*\",IF(ISERROR(F81/G81*1000),\"N/A\",(ROUND(F81/G81*1000,1))))","v":0}]
[null,"Y60","Midlands Commissioning Region","RXW","Shrewsbury And Telford Hospital NHS Trust",27,14255,1.9]
[null,"Y60","Midlands Commissioning Region","RJC","South Warwickshire NHS Foundation Trust",0,7495,0]
[null,"Y60","Midlands Commissioning Region","RNA","The Dudley Group NHS Foundation Trust",11,9895,1.1000000000000001]
[null,"Y60","Midlands Commissioning Region","RL1","The Robert Jones And Agnes Hunt Orthopaedic Hospital NHS Foundation Trust",0,1150,0]
[null,"Y60","Midlands Commissioning Region","RRJ","The Royal Orthopaedic Hospital NHS Foundation Trust",0,1125,0]
[null,"Y60","Midlands Commissioning Region","RL4","The Royal Wolverhampton NHS Trust",0,12215,0]
[null,"Y60","Midlands Commissioning Region","RWD","United Lincolnshire Hospitals NHS Trust",0,13660,0]
[null,"Y60","Midlands Commissioning Region","RRK","University Hospitals Birmingham NHS Foundation Trust",10,38100,0.3]
[null,"Y60","Midlands Commissioning Region","RKB","University Hospitals Coventry And Warwickshire NHS Trust",0,16615,0]
[null,"Y60","Midlands Commissioning Region","RTG","University Hospitals Of Derby And Burton NHS Foundation Trust",17,25585,0.7]
[null,"Y60","Midlands Commissioning Region","RWE","University Hospitals Of Leicester NHS Trust",0,26720,0]
[null,"Y60","Midlands Commissioning Region","RJE","University Hospitals Of North Midlands NHS Trust",0,24770,0]
[null,"Y60","Midlands Commissioning Region","RBK","Walsall Healthcare NHS Trust",0,6640,0]
[null,"Y60","Midlands Commissioning Region","RWP","Worcestershire Acute Hospitals NHS Trust",49,14775,3.3]
[null,"Y60","Midlands Commissioning Region","RLQ","Wye Valley NHS Trust",8,6125,1.3]
[null,"Y61","East of England Commissioning Region","RDD","Basildon And Thurrock University Hospitals NHS Foundation Trust",0,11740,0]
[null,"Y61","East of England Commissioning Region","RC1","Bedford Hospital NHS Trust",38,6600,5.8]
[null,"Y61","East of England Commissioning Region","RGT","Cambridge University Hospitals NHS Foundation Trust",4,16430,0.2]
[null,"Y61","East of England Commissioning Region","RWH","East And North Hertfordshire NHS Trust",0,11795,0]
[null,"Y61","East of England Commissioning Region","RDE","East Suffolk And North Essex NHS Foundation Trust",5,19990,0.3]
[null,"Y61","East of England Commissioning Region","RGP","James Paget University Hospitals NHS Foundation Trust",0,6440,0]
[null,"Y61","East of England Commissioning Region","RC9","Luton And Dunstable University Hospital NHS Foundation Trust",0,11655,0]
[null,"Y61","East of England Commissioning Region","RQ8","Mid Essex Hospital Services NHS Trust",0,8955,0]
[null,"Y61","East of England Commissioning Region","RD8","Milton Keynes University Hospital NHS Foundation Trust",0,8325,0]
[null,"Y61","East of England Commissioning Region","RM1","Norfolk And Norwich University Hospitals NHS Foundation Trust",0,18185,0]
[null,"Y61","East of England Commissioning Region","RGN","North West Anglia NHS Foundation Trust",0,13125,0]
[null,"Y61","East of England Commissioning Region","RGM","Royal Papworth Hospital NHS Foundation Trust",0,1590,0]
[null,"Y61","East of England Commissioning Region","RAJ","Southend University Hospital NHS Foundation Trust",0,9660,0]
[null,"Y61","East of England Commissioning Region","RQW","The Princess Alexandra Hospital NHS Trust",6,7240,0.8]
[null,"Y61","East of England Commissioning Region","RCX","The Queen Elizabeth Hospital, King's Lynn, NHS Foundation Trust",25,8155,3.1]
[null,"Y61","East of England Commissioning Region","RWG","West Hertfordshire Hospitals NHS Trust",0,9580,0]
[null,"Y61","East of England Commissioning Region","RGR","West Suffolk NHS Foundation Trust",3,7230,0.4]
[null,"Y62","North West Commissioning Region","REM","Liverpool University Hospitals NHS Foundation Trust",0,20255,0]
[null,"Y62","North West Commissioning Region","RBS","Alder Hey Children's NHS Foundation Trust",0,3830,0]
[null,"Y62","North West Commissioning Region","RXL","Blackpool Teaching Hospitals NHS Foundation Trust",0,10830,0]
[null,"Y62","North West Commissioning Region","RMC","Bolton NHS Foundation Trust",17,7455,2.2999999999999998]
[null,"Y62","North West Commissioning Region","RJR","Countess Of Chester Hospital NHS Foundation Trust",2,8655,0.2]
[null,"Y62","North West Commissioning Region","RJN","East Cheshire NHS Trust",26,3445,7.5]
[null,"Y62","North West Commissioning Region","RXR","East Lancashire Hospitals NHS Trust",0,12785,0]
[null,"Y62","North West Commissioning Region","RXN","Lancashire Teaching Hospitals NHS Foundation Trust",68,12295,5.5]
[null,"Y62","North West Commissioning Region","RBQ","Liverpool Heart And Chest Hospital NHS Foundation Trust",0,1095,0]
[null,"Y62","North West Commissioning Region","REP","Liverpool Women's NHS Foundation Trust",0,3385,0]
[null,"Y62","North West Commissioning Region","R0A","Manchester University NHS Foundation Trust",1,29925,0]
[null,"Y62","North West Commissioning Region","RBT","Mid Cheshire Hospitals NHS Foundation Trust",0,7805,0]
[null,"Y62","North West Commissioning Region","RW6","Pennine Acute Hospitals NHS Trust",21,20245,1]
[null,"Y62","North West Commissioning Region","RM3","Salford Royal NHS Foundation Trust",0,10520,0]
[null,"Y62","North West Commissioning Region","RVY","Southport And Ormskirk Hospital NHS Trust",15,5740,2.6]
[null,"Y62","North West Commissioning Region","RBN","St Helens And Knowsley Teaching Hospitals NHS Trust",0,13305,0]
[null,"Y62","North West Commissioning Region","RWJ","Stockport NHS Foundation Trust",0,8130,0]
[null,"Y62","North West Commissioning Region","RMP","Tameside And Glossop Integrated Care NHS Foundation Trust",0,5500,0]
[null,"Y62","North West Commissioning Region","RBV","The Christie NHS Foundation Trust",0,1825,0]
[null,"Y62","North West Commissioning Region","REN","The Clatterbridge Cancer Centre NHS Foundation Trust",0,555,0]
[null,"Y62","North West Commissioning Region","RET","The Walton Centre NHS Foundation Trust",0,895,0]
[null,"Y62","North West Commissioning Region","RTX","University Hospitals Of Morecambe Bay NHS Foundation Trust",26,8845,2.9]
[null,"Y62","North West Commissioning Region","RWW","Warrington And Halton Teaching Hospitals NHS Foundation Trust",8,6625,1.2]
[null,"Y62","North West Commissioning Region","RBL","Wirral University Teaching Hospital NHS Foundation Trust",10,12595,0.8]
[null,"Y62","North West Commissioning Region","RRF","Wrightington, Wigan And Leigh NHS Foundation Trust",0,7855,0]
[null,"Y63","North East and Yorkshire Commissioning Region","RCF","Airedale NHS Foundation Trust",2,5945,0.3]
[null,"Y63","North East and Yorkshire Commissioning Region","RFF","Barnsley Hospital NHS Foundation Trust",0,7325,0]
[null,"Y63","North East and Yorkshire Commissioning Region","RAE","Bradford Teaching Hospitals NHS Foundation Trust",0,14055,0]
[null,"Y63","North East and Yorkshire Commissioning Region","RWY","Calderdale And Huddersfield NHS Foundation Trust",0,11190,0]
[null,"Y63","North East and Yorkshire Commissioning Region","RXP","County Durham And Darlington NHS Foundation Trust",0,12265,0]
[null,"Y63","North East and Yorkshire Commissioning Region","RP5","Doncaster And Bassetlaw Teaching Hospitals NHS Foundation Trust",0,12170,{"$f":"IF(G144=\"*\",\"*\",IF(ISERROR(F144/G144*1000),\"N/A\",(ROUND(F144/G144*1000,1))))","v":0}]
[null,"Y63","North East and Yorkshire Commissioning Region","RR7","Gateshead Health NHS Foundation Trust",0,6820,0]
[null,"Y63","North East and Yorkshire Commissioning Region","RCD","Harrogate And District NHS Foundation Trust",0,5195,0]
[null,"Y63","North East and Yorkshire Commissioning Region","RWA","Hull University Teaching Hospitals NHS Trust",0,15085,0]
[null,"Y63","North East and Yorkshire Commissioning Region","RR8","Leeds Teaching Hospitals NHS Trust",4,18680,0.2]
[null,"Y63","North East and Yorkshire Commissioning Region","RXF","Mid Yorkshire Hospitals NHS Trust",0,16175,0]
[null,"Y63","North East and Yorkshire Commissioning Region","RNN","North Cumbria Integrated Care NHS Foundation Trust",0,7310,{"$f":"IF(G150=\"*\",\"*\",IF(ISERROR(F150/G150*1000),\"N/A\",(ROUND(F150/G150*1000,1))))","v":0}]
[null,"Y63","North East and Yorkshire Commissioning Region","RVW","North Tees And Hartlepool NHS Foundation Trust",0,9440,0]
[null,"Y63","North East and Yorkshire Commissioning Region","RJL","Northern Lincolnshire And Goole NHS Foundation Trust",0,9700,0]
[null,"Y63","North East and Yorkshire Commissioning Region","RTF","Northumbria Healthcare NHS Foundation Trust",0,13045,0]
[null,"Y63","North East and Yorkshire Commissioning Region","RCU","Sheffield Children's NHS Foundation Trust",0,1985,0]
[null,"Y63","North East and Yorkshire Commissioning Region","RHQ","Sheffield Teaching Hospitals NHS Foundation Trust",0,22680,0]
[null,"Y63","North East and Yorkshire Commissioning Region","RTR","South Tees Hospitals NHS Foundation Trust",2,14415,0.1]
[null,"Y63","North East and Yorkshire Commissioning Region","R0B","South Tyneside And Sunderland NHS Foundation Trust",0,14145,0]
[null,"Y63","North East and Yorkshire Commissioning Region","RTD","The Newcastle Upon Tyne Hospitals NHS Foundation Trust",0,20205,0]
[null,"Y63","North East and Yorkshire Commissioning Region","RFR","The Rotherham NHS Foundation Trust",0,6520,0]
[null,"Y63","North East and Yorkshire Commissioning Region","RCB","York Teaching Hospital NHS Foundation Trust",0,17640,0]
[]
[]
[null,"Care Trust, Community Trust and Mental Health Provider Level Data"]
[null,"Region Code","Region Name","Organisation Code","Organisation Name","MSA Breaches1","Finished Consultant Episodes2\n(from previous year)","Breach Rate3,4"]
[null,null,null,"-","All Care Trusts, Community Trusts and Mental Health Providers",5,16465,{"$f":"(F165/G165)*1000","v":0.30367446097783179}]
[]
[null,"Y56","London Commissioning Region","RRP","Barnet, Enfield And Haringey Mental Health NHS Trust",0,"N/A",{"$f":"IF(G167=\"*\",\"*\",IF(ISERROR(F167/G167*1000),\"N/A\",(ROUND(F167/G167*1000,1))))","v":"N/A"}]
[null,"Y56","London Commissioning Region","TAF","Camden And Islington NHS Foundation Trust",0,"N/A",{"$f":"IF(G168=\"*\",\"*\",IF(ISERROR(F168/G168*1000),\"N/A\",(ROUND(F168/G168*1000,1))))","v":"N/A"}]
[null,"Y56","London Commissioning Region","RV3","Central And North West London NHS Foundation Trust",0,390,0]
[null,"Y56","London Commissioning Region","RYX","Central London Community Healthcare NHS Trust",0,"N/A","N/A"]
[null,"Y56","London Commissioning Region","RWK","East London NHS Foundation Trust",0,705,0]
[null,"Y56","London Commissioning Region","RY9","Hounslow And Richmond Community Healthcare NHS Trust",0,35,0]
[null,"Y56","London Commissioning Region","RAT","North East London NHS Foundation Trust",0,230,0]
[null,"Y56","London Commissioning Region","RPG","Oxleas NHS Foundation Trust",0,235,0]
[null,"Y56","London Commissioning Region","RV5","South London And Maudsley NHS Foundation Trust",0,310,0]
[null,"Y56","London Commissioning Region","RQY","South West London And St George's Mental Health NHS Trust",0,305,0]
[null,"Y56","London Commissioning Region","RKL","West London NHS Trust",0,"N/A","N/A"]
[null,"Y58","South West Commissioning Region","RTQ","Gloucestershire Health And Care NHS Foundation Trust",0,400,0]
[null,"Y58","South West Commissioning Region","RVN","Avon And Wiltshire Mental Health Partnership NHS Trust",0,305,0]
[null,"Y58","South West Commissioning Region","RJ8","Cornwall Partnership NHS Foundation Trust",0,475,0]
[null,"Y58","South West Commissioning Region","RWV","Devon Partnership NHS Trust",0,"N/A","N/A"]
[null,"Y58","South West Commissioning Region","RDY","Dorset Healthcare University NHS Foundation Trust",0,550,0]
[null,"Y58","South West Commissioning Region","RH5","Somerset Partnership NHS Foundation Trust",0,345,0]
[null,"Y59","South East Commissioning Region","RWX","Berkshire Healthcare NHS Foundation Trust",0,260,0]
[null,"Y59","South East Commissioning Region","RXY","Kent And Medway NHS And Social Care Partnership Trust",0,295,0]
[null,"Y59","South East Commissioning Region","RYY","Kent Community Health NHS Foundation Trust",0,205,0]
[null,"Y59","South East Commissioning Region","RNU","Oxford Health NHS Foundation Trust",0,290,0]
[null,"Y59","South East Commissioning Region","R1C","Solent NHS Trust",0,95,0]
[null,"Y59","South East Commissioning Region","RW1","Southern Health NHS Foundation Trust",0,935,0]
[null,"Y59","South East Commissioning Region","RXX","Surrey And Borders Partnership NHS Foundation Trust",0,245,0]
[null,"Y59","South East Commissioning Region","RDR","Sussex Community NHS Foundation Trust",0,335,0]
[null,"Y59","South East Commissioning Region","RX2","Sussex Partnership NHS Foundation Trust",0,255,0]
[null,"Y60","Midlands Commissioning Region","RXT","Birmingham And Solihull Mental Health NHS Foundation Trust",0,240,0]
[null,"Y60","Midlands Commissioning Region","RYW","Birmingham Community Healthcare NHS Foundation Trust",0,430,0]
[null,"Y60","Midlands Commissioning Region","TAJ","Black Country Partnership NHS Foundation Trust",0,110,0]
[null,"Y60","Midlands Commissioning Region","RYG","Coventry And Warwickshire Partnership NHS Trust",0,220,0]
[null,"Y60","Midlands Commissioning Region","RY8","Derbyshire Community Health Services NHS Foundation Trust",0,480,0]
[null,"Y60","Midlands Commissioning Region","RXM","Derbyshire Healthcare NHS Foundation Trust",0,145,0]
[null,"Y60","Midlands Commissioning Region","RYK","Dudley And Walsall Mental Health Partnership NHS Trust",0,"N/A","N/A"]
[null,"Y60","Midlands Commissioning Region","RT5","Leicestershire Partnership NHS Trust",0,815,0]
[null,"Y60","Midlands Commissioning Region","RY5","Lincolnshire Community Health Services NHS Trust",0,45,0]
[null,"Y60","Midlands Commissioning Region","RP7","Lincolnshire Partnership NHS Foundation Trust",0,90,0]
[null,"Y60","Midlands Commissioning Region","RRE","Midlands Partnership NHS Foundation Trust",0,550,0]
[null,"Y60","Midlands Commissioning Region","RLY","North Staffordshire Combined Healthcare NHS Trust",0,200,0]
[null,"Y60","Midlands Commissioning Region","RP1","Northamptonshire Healthcare NHS Foundation Trust",0,240,0]
[null,"Y60","Midlands Commissioning Region","RHA","Nottinghamshire Healthcare NHS Foundation Trust",0,365,0]
[null,"Y60","Midlands Commissioning Region","R1D","Shropshire Community Health NHS Trust",0,245,0]
[null,"Y60","Midlands Commissioning Region","R1A","Worcestershire Health And Care NHS Trust",0,650,0]
[null,"Y61","East of England Commissioning Region","RT1","Cambridgeshire And Peterborough NHS Foundation Trust",0,150,0]
[null,"Y61","East of England Commissioning Region","R1L","Essex Partnership University NHS Foundation Trust",0,440,0]
[null,"Y61","East of England Commissioning Region","RY4","Hertfordshire Community NHS Trust",0,195,0]
[null,"Y61","East of England Commissioning Region","RWR","Hertfordshire Partnership University NHS Foundation Trust",0,250,0]
[null,"Y61","East of England Commissioning Region","RMY","Norfolk And Suffolk NHS Foundation Trust",0,285,0]
[null,"Y61","East of England Commissioning Region","RY3","Norfolk Community Health And Care NHS Trust",0,330,0]
[null,"Y62","North West Commissioning Region","RXA","Cheshire And Wirral Partnership NHS Foundation Trust",0,210,0]
[null,"Y62","North West Commissioning Region","RXV","Greater Manchester Mental Health NHS Foundation Trust",0,"N/A","N/A"]
[null,"Y62","North West Commissioning Region","RW5","Lancashire & South Cumbria NHS Foundation Trust",0,365,0]
[null,"Y62","North West Commissioning Region","RW4","Mersey Care NHS Foundation Trust",0,260,0]
[null,"Y62","North West Commissioning Region","RTV","North West Boroughs Healthcare NHS Foundation Trust",0,245,0]
[null,"Y62","North West Commissioning Region","RT2","Pennine Care NHS Foundation Trust",5,"N/A","N/A"]
[null,"Y63","North East and Yorkshire Commissioning Region","TAD","Bradford District Care NHS Foundation Trust",0,95,0]
[null,"Y63","North East and Yorkshire Commissioning Region","RV9","Humber Teaching NHS Foundation Trust",0,210,0]
[null,"Y63","North East and Yorkshire Commissioning Region","RGD","Leeds And York Partnership NHS Foundation Trust",0,150,0]
[null,"Y63","North East and Yorkshire Commissioning Region","RY6","Leeds Community Healthcare NHS Trust",0,10,0]
[null,"Y63","North East and Yorkshire Commissioning Region","RX4","Cumbria, Northumberland, Tyne And Wear NHS Foundation Trust",0,255,0]
[null,"Y63","North East and Yorkshire Commissioning Region","RXE","Rotherham Doncaster And South Humber NHS Foundation Trust",0,200,0]
[null,"Y63","North East and Yorkshire Commissioning Region","TAH","Sheffield Health & Social Care NHS Foundation Trust",0,"N/A","N/A"]
[null,"Y63","North East and Yorkshire Commissioning Region","RXG","South West Yorkshire Partnership NHS Foundation Trust",0,165,0]
[null,"Y63","North East and Yorkshire Commissioning Region","RX3","Tees, Esk And Wear Valleys NHS Foundation Trust",0,620,0]
[]
[null,"Independent Sector Level Data"]
[null,"Region Code","Region Name","Organisation Code","Organisation Name","MSA Breaches1","Finished Consultant Episodes2\n(from previous year)","Breach Rate3,4"]
[null,null,null,"-","All Independent Providers",0,28520,{"$f":"F233/G233*1000","v":0}]
[]
[null,"Y56","London Commissioning Region","NV3","Circle",0,3125,{"$f":"IF(G235=\"*\",\"*\",IF(ISERROR(F235/G235*1000),\"N/A\",(ROUND(F235/G235*1000,1))))","v":0}]
[null,"Y56","London Commissioning Region","NT2","Nuffield Health",0,2620,{"$f":"IF(G236=\"*\",\"*\",IF(ISERROR(F236/G236*1000),\"N/A\",(ROUND(F236/G236*1000,1))))","v":0}]
[null,"Y56","London Commissioning Region","NT3","Spire Healthcare",0,5540,0]
[null,"Y58","South West Commissioning Region","NR5","Livewell Southwest",0,155,0]
[null,"Y58","South West Commissioning Region","NLT","North Somerset Community Partnership Community Interest Company",0,"N/A","N/A"]
[null,"Y58","South West Commissioning Region","AXG","Wiltshire Health & Care",0,80,0]
[null,"Y59","South East Commissioning Region","NTP","Care UK",0,4410,0]
[null,"Y59","South East Commissioning Region","NTV","CSH Surrey",0,75,0]
[null,"Y59","South East Commissioning Region","NVM","Epsomedical Group",0,395,0]
[null,"Y59","South East Commissioning Region","ADP","Kims Hospital",0,460,0]
[null,"Y61","East of England Commissioning Region","NQ1","Anglian Community Enterprise Community Interest Company (ACE CIC)",0,65,0]
[null,"Y61","East of England Commissioning Region","NQA","Provide",0,"N/A","N/A"]
[null,"Y61","East of England Commissioning Region","NVC","Ramsay Healthcare UK Operations Limited",0,11230,0]
[null,"Y62","North West Commissioning Region","NDA","Virgin Care Services Ltd",0,120,0]
[null,"Y62","North West Commissioning Region","NVG","Fairfield Hospital",0,190,0]
[null,"Y62","North West Commissioning Region","NQT","Virgin Care Ltd",0,55,0]
[null,"Y63","North East and Yorkshire Commissioning Region","NL3","Care Plus Group",0,"N/A","N/A"]
[null,"Y63","North East and Yorkshire Commissioning Region","NL8","Locala Community Partnerships CIC",0,"N/A","N/A"]
[null,"Y63","North East and Yorkshire Commissioning Region","NQL","Navigo Health And Social Care CIC",0,"N/A","N/A"]
[]
[null,"Notes:"]
[null,"1. In September 2019 a revised policy, \"Delivering same-sex accommodation\" was published. Data providers were asked to ensure reporting of MSA breaches for the purposes of this collection were in line with the revised policy by January 2020. This transition period allows providers to make appropriate changes to enable them to report on this basis. As such this may impact on data quality for September - December 2019 data. Providers should all be reporting consistently and as per the updated guidance by January 2020. "]
[]
[null,"2. Finished Consultant Episode (FCE) data from Hospital Episode Statistics (HES) are used to calculate the MSA breach rate (for further details on methodology of this calculation see footnote 2). The FCE data presented here are a snapshot of latest HES data available at the time of the MSA publication for the relevant data period (due to timings of HES publication in some months this will represent \"final\" HES data, however for some months this is \"provisional\" HES data). These are used solely for the purposes of calculating an MSA breach rate to allow comparisons across providers and of change over time.\n\nFrom 2017/18 onwards, at the point of publication of MSA revisions (every 6 months), the FCE denominator is updated to reflect final HES data where available so is subject to change and may not always match the published HES timeseries (where provisional data is updated on a monthly basis).  The official and most recent timeseries of HES data is available on the NHS Digital website which will reflect any more recent updates to the provisional HES FCE data. https://digital.nhs.uk/data-and-information/publications/statistical/hospital-episode-statistics-for-admitted-patient-care-outpatient-and-accident-and-emergency-data\n\nProvider level HES FCE data is suppressed in accordance with HES disclosure control methodology.\nhttps://digital.nhs.uk/binaries/content/assets/website-assets/data-and-information/data-tools-and-services/data-services/hospital-episode-statistics/hes_analysis_guide_september_2018-v1.1.pdf\n\nHES Disclosure Control\nIn order to protect patient confidentiality '*' appears in the table above for all sub-national breakdowns, where it is possible to calculate a value between 1 and 7 from the data presented. All other sub-national data has been rounded to the nearest 5.\n\nIf the national total is between 1 and 7 (inclusive), no sub-national breakdown will be displayed. \n\nIf the national total is greater than or equal to 8;\na. Sub-national counts between 1 and 7 (inclusive) will be displayed as ’*’.\nb. Zeroes will be unchanged.\nc. All other counts will be rounded to the nearest 5."]
[]
[null,"3. The MSA breach rate is the number of MSA breaches, per 1,000 finished consultant episodes. Due to timeliness of HES data, there is one year’s lag in the denominator data, compared to the MSA breaches. For example, the breach rate for June 2019 is calculated by dividing the total MSA breaches in June 2019 (numerator) by the number of Finished Consultant Episodes in June 2018 (denominator). As such, it is only an estimation. Please see Breach Rate methodology paper for further information via: http://www.england.nhs.uk/statistics/mixed-sex-accommodation/\n\nWhen calculating rates or percentages at regional level using HES data;\n1) Where the numerator or denominator is between 1 and 7 (inclusive), no percentage or rate is calculated, and a ’*’ will be displayed.\n2) Where the numerator is zero, the percentage will be 0%.\n3) Where the unrounded numerator and denominator are greater than or equal to 8, a percentage or rate is calculated using the rounded numerator or denominator.\n4).Where no denominator data is available, no percentage or rate is calculated, and ’N/A’ will be displayed."]
[]
[null,"4. The Breach Rate for some organisations - particularly Care Trusts, Community Trusts or Mental Health Providers - may be artificially high due to their reporting of episodes of care. Activity for these organisations may be led by multi-disciplinary teams, which would not necessarily be captured as Finished Consultant Episodes and would therefore potentially be excluded from the denominator, leading to an inflated breach rate estimate."]
[]
[null,"5. From January 2020 publication (November 2019 data) onwards breaches for Non-English commissioned patients are excluded."]
[]
[null,"6. Sandwell and West Birmingham Hospitals NHS Trust (RXK) and Epsom and St Helier University Hospitals Trust (RVR) did not submit data for December 2019 due to data quality issues. "]

{"sheet":"Commissioner","index":4,"n_rows":220,"n_cols":8,"rows_kept":220,"cut":false,"hidden":false,"merged":[[220,1,220,7],[213,1,213,7],[215,1,215,7],[217,1,217,7],[211,1,211,7],[219,1,219,7]]}
[]
[null,"Title:","Mixed-Sex Accommodation"]
[null,"Summary:","The total occurrences of unjustified mixing in relation to sleeping accommodation."]
[]
[null,"Period:",{"$f":"Publicationmonth","v":"December 2019"}]
[null,"Sources:",{"$f":"'National & Regional Team'!C6","v":"MSA, collected via SDCS, NHS England and NHS Improvement (MSA breaches)"}]
[null,null,{"$f":"'National & Regional Team'!C7","v":"Hospital Episode Statistics (HES), NHS Digital (FCE data)"}]
[null,"Basis:","Commissioner"]
[null,"Published:",{"$f":"Publicationdate","v":"13th February 2020"}]
[null,"Revised:","-"]
[null,"Status:","Published"]
[null,"Contact:","Katie Tither - england.nhsdata@nhs.net"]
[]
[null,"Commissioner Level Data"]
[null,"Region Code","Region Name","Organisation Code","Organisation Name","MSA Breaches1","Finished Consultant Episodes2\n(from previous year)","Breach Rate3"]
[null,"-","-","-","England",2054,1655793,{"$f":"ROUND(F16/G16*1000,1)","v":1.2}]
[]
[null,"X24","NHS England","X24","NHS England",5,"N/A",{"$f":"IF(G18=\"*\",\"*\",IF(ISERROR(F18/G18*1000),\"N/A\",(ROUND(F18/G18*1000,1))))","v":"N/A"}]
[null,"Y56","London Commissioning Region","07L","NHS Barking And Dagenham CCG",10,4790,{"$f":"IF(G19=\"*\",\"*\",IF(ISERROR(F19/G19*1000),\"N/A\",(ROUND(F19/G19*1000,1))))","v":2.1}]
[null,"Y56","London Commissioning Region","07M","NHS Barnet CCG",27,9865,2.7]
[null,"Y56","London Commissioning Region","07N","NHS Bexley CCG",4,7200,0.6]
[null,"Y56","London Commissioning Region","07P","NHS Brent CCG",30,10260,2.9]
[null,"Y56","London Commissioning Region","07Q","NHS Bromley CCG",0,9175,0]
[null,"Y56","London Commissioning Region","07R","NHS Camden CCG",5,5360,0.9]
[null,"Y56","London Commissioning Region","09A","NHS Central London (Westminster) CCG",7,4090,1.7]
[null,"Y56","London Commissioning Region","07T","NHS City And Hackney CCG",0,7500,0]
[null,"Y56","London Commissioning Region","07V","NHS Croydon CCG",0,9305,0]
[null,"Y56","London Commissioning Region","07W","NHS Ealing CCG",16,11180,1.4]
[null,"Y56","London Commissioning Region","07X","NHS Enfield CCG",6,8680,0.7]
[null,"Y56","London Commissioning Region","08A","NHS Greenwich CCG",1,8015,0.1]
[null,"Y56","London Commissioning Region","08C","NHS Hammersmith And Fulham CCG",5,5335,0.9]
[null,"Y56","London Commissioning Region","08D","NHS Haringey CCG",7,7115,1]
[null,"Y56","London Commissioning Region","08E","NHS Harrow CCG",29,8100,3.6]
[null,"Y56","London Commissioning Region","08F","NHS Havering CCG",12,6955,1.7]
[null,"Y56","London Commissioning Region","08G","NHS Hillingdon CCG",18,7450,2.4]
[null,"Y56","London Commissioning Region","07Y","NHS Hounslow CCG",9,7295,1.2]
[null,"Y56","London Commissioning Region","08H","NHS Islington CCG",5,5580,0.9]
[null,"Y56","London Commissioning Region","08J","NHS Kingston CCG",0,4535,0]
[null,"Y56","London Commissioning Region","08K","NHS Lambeth CCG",1,8425,0.1]
[null,"Y56","London Commissioning Region","08L","NHS Lewisham CCG",0,7370,0]
[null,"Y56","London Commissioning Region","08R","NHS Merton CCG",0,5125,0]
[null,"Y56","London Commissioning Region","08M","NHS Newham CCG",12,7815,1.5]
[null,"Y56","London Commissioning Region","08N","NHS Redbridge CCG",8,7125,1.1000000000000001]
[null,"Y56","London Commissioning Region","08P","NHS Richmond CCG",0,4700,0]
[null,"Y56","London Commissioning Region","08Q","NHS Southwark CCG",3,7420,0.4]
[null,"Y56","London Commissioning Region","08T","NHS Sutton CCG",1,5475,0.2]
[null,"Y56","London Commissioning Region","08V","NHS Tower Hamlets CCG",8,6895,1.2]
[null,"Y56","London Commissioning Region","08W","NHS Waltham Forest CCG",5,7740,0.6]
[null,"Y56","London Commissioning Region","08X","NHS Wandsworth CCG",2,7895,0.3]
[null,"Y56","London Commissioning Region","08Y","NHS West London CCG",7,5335,1.3]
[null,"Y58","South West Commissioning Region","11E","NHS Bath And North East Somerset CCG",0,5160,0]
[null,"Y58","South West Commissioning Region","15C","NHS Bristol, North Somerset And South Gloucestershire CCG",1,29160,0]
[null,"Y58","South West Commissioning Region","15N","NHS Devon CCG",0,36635,0]
[null,"Y58","South West Commissioning Region","11J","NHS Dorset CCG",12,24555,0.5]
[null,"Y58","South West Commissioning Region","11M","NHS Gloucestershire CCG",14,17050,0.8]
[null,"Y58","South West Commissioning Region","11N","NHS Kernow CCG",0,20595,0]
[null,"Y58","South West Commissioning Region","11X","NHS Somerset CCG",4,16815,0.2]
[null,"Y58","South West Commissioning Region","12D","NHS Swindon CCG",58,6525,8.9]
[null,"Y58","South West Commissioning Region","99N","NHS Wiltshire CCG",112,13620,8.1999999999999993]
[null,"Y59","South East Commissioning Region","09C","NHS Ashford CCG",306,3365,90.9]
[null,"Y59","South East Commissioning Region","15A","NHS Berkshire West CCG",269,14635,18.399999999999999]
[null,"Y59","South East Commissioning Region","09D","NHS Brighton And Hove CCG",11,5980,1.8]
[null,"Y59","South East Commissioning Region","14Y","NHS Buckinghamshire CCG",7,14325,0.5]
[null,"Y59","South East Commissioning Region","09E","NHS Canterbury And Coastal CCG",67,5245,12.8]
[null,"Y59","South East Commissioning Region","09G","NHS Coastal West Sussex CCG",83,15180,5.5]
[null,"Y59","South East Commissioning Region","09H","NHS Crawley CCG",2,3955,0.5]
[null,"Y59","South East Commissioning Region","09J","NHS Dartford, Gravesham And Swanley CCG",12,7480,1.6]
[null,"Y59","South East Commissioning Region","15D","NHS East Berkshire CCG",30,11525,2.6]
[null,"Y59","South East Commissioning Region","09L","NHS East Surrey CCG",1,5765,0.2]
[null,"Y59","South East Commissioning Region","09F","NHS Eastbourne, Hailsham And Seaford CCG",16,5640,2.8]
[null,"Y59","South East Commissioning Region","10K","NHS Fareham And Gosport CCG",0,5520,0]
[null,"Y59","South East Commissioning Region","09N","NHS Guildford And Waverley CCG",1,5340,0.2]
[null,"Y59","South East Commissioning Region","09P","NHS Hastings And Rother CCG",19,5700,3.3]
[null,"Y59","South East Commissioning Region","99K","NHS High Weald Lewes Havens CCG",9,4080,2.2000000000000002]
[null,"Y59","South East Commissioning Region","09X","NHS Horsham And Mid Sussex CCG",5,6465,0.8]
[null,"Y59","South East Commissioning Region","10L","NHS Isle Of Wight CCG",9,3715,2.4]
[null,"Y59","South East Commissioning Region","09W","NHS Medway CCG",34,7700,4.4000000000000004]
[null,"Y59","South East Commissioning Region","99M","NHS North East Hampshire And Farnham CCG",15,5865,2.6]
[null,"Y59","South East Commissioning Region","10J","NHS North Hampshire CCG",3,5325,0.6]
[null,"Y59","South East Commissioning Region","09Y","NHS North West Surrey CCG",22,8080,2.7]
[null,"Y59","South East Commissioning Region","10Q","NHS Oxfordshire CCG",63,16155,3.9]
[null,"Y59","South East Commissioning Region","10R","NHS Portsmouth CCG",0,5525,{"$f":"IF(G82=\"*\",\"*\",IF(ISERROR(F82/G82*1000),\"N/A\",(ROUND(F82/G82*1000,1))))","v":0}]
[null,"Y59","South East Commissioning Region","10V","NHS South Eastern Hampshire CCG",0,6055,0]
[null,"Y59","South East Commissioning Region","10A","NHS South Kent Coast CCG",49,5675,8.6]
[null,"Y59","South East Commissioning Region","10X","NHS Southampton CCG",0,7870,0]
[null,"Y59","South East Commissioning Region","99H","NHS Surrey Downs CCG",1,7435,0.1]
[null,"Y59","South East Commissioning Region","10C","NHS Surrey Heath CCG",3,2650,1.1000000000000001]
[null,"Y59","South East Commissioning Region","10D","NHS Swale CCG",29,3025,9.6]
[null,"Y59","South East Commissioning Region","10E","NHS Thanet CCG",1,4155,0.2]
[null,"Y59","South East Commissioning Region","11A","NHS West Hampshire CCG",9,15580,0.6]
[null,"Y59","South East Commissioning Region","99J","NHS West Kent CCG",7,11720,0.6]
[null,"Y60","Midlands Commissioning Region","15E","NHS Birmingham And Solihull CCG",6,38525,0.2]
[null,"Y60","Midlands Commissioning Region","04Y","NHS Cannock Chase CCG",1,3910,0.3]
[null,"Y60","Midlands Commissioning Region","03V","NHS Corby CCG",11,2405,4.5999999999999996]
[null,"Y60","Midlands Commissioning Region","05A","NHS Coventry And Rugby CCG",0,14645,0]
[null,"Y60","Midlands Commissioning Region","15M","NHS Derby and Derbyshire CCG",11,32451,0.3]
[null,"Y60","Midlands Commissioning Region","05C","NHS Dudley CCG",8,8880,0.9]
[null,"Y60","Midlands Commissioning Region","03W","NHS East Leicestershire And Rutland CCG",4,9525,0.4]
[null,"Y60","Midlands Commissioning Region","05D","NHS East Staffordshire CCG",3,5190,0.6]
[null,"Y60","Midlands Commissioning Region","05F","NHS Herefordshire CCG",12,6015,2]
[null,"Y60","Midlands Commissioning Region","04C","NHS Leicester City CCG",0,10860,0]
[null,"Y60","Midlands Commissioning Region","03T","NHS Lincolnshire East CCG",0,7415,0]
[null,"Y60","Midlands Commissioning Region","04D","NHS Lincolnshire West CCG",0,5875,0]
[null,"Y60","Midlands Commissioning Region","04E","NHS Mansfield And Ashfield CCG",0,5985,0]
[null,"Y60","Midlands Commissioning Region","04G","NHS Nene CCG",56,19755,2.8]
[null,"Y60","Midlands Commissioning Region","04H","NHS Newark And Sherwood CCG",0,4215,0]
[null,"Y60","Midlands Commissioning Region","05G","NHS North Staffordshire CCG",2,7730,0.3]
[null,"Y60","Midlands Commissioning Region","04K","NHS Nottingham City CCG",0,9670,0]
[null,"Y60","Midlands Commissioning Region","04L","NHS Nottingham North And East CCG",0,4715,0]
[null,"Y60","Midlands Commissioning Region","04M","NHS Nottingham West CCG",2,2675,0.7]
[null,"Y60","Midlands Commissioning Region","05J","NHS Redditch And Bromsgrove CCG",15,5115,2.9]
[null,"Y60","Midlands Commissioning Region","04N","NHS Rushcliffe CCG",0,3480,0]
[null,"Y60","Midlands Commissioning Region","05L","NHS Sandwell And West Birmingham CCG",3,14580,0.2]
[null,"Y60","Midlands Commissioning Region","05N","NHS Shropshire CCG",22,9735,2.2999999999999998]
[null,"Y60","Midlands Commissioning Region","05Q","NHS South East Staffordshire And Seisdon Peninsula CCG",10,6540,1.5]
[null,"Y60","Midlands Commissioning Region","99D","NHS South Lincolnshire CCG",2,4405,0.5]
[null,"Y60","Midlands Commissioning Region","05R","NHS South Warwickshire CCG",2,8505,0.2]
[null,"Y60","Midlands Commissioning Region","04Q","NHS South West Lincolnshire CCG",0,3605,0]
[null,"Y60","Midlands Commissioning Region","05T","NHS South Worcestershire CCG",22,8765,2.5]
[null,"Y60","Midlands Commissioning Region","05V","NHS Stafford And Surrounds CCG",0,4995,0]
[null,"Y60","Midlands Commissioning Region","05W","NHS Stoke On Trent CCG",0,11865,0]
[null,"Y60","Midlands Commissioning Region","05X","NHS Telford And Wrekin CCG",6,5465,1.1000000000000001]
[null,"Y60","Midlands Commissioning Region","05Y","NHS Walsall CCG",0,8085,0]
[null,"Y60","Midlands Commissioning Region","05H","NHS Warwickshire North CCG",0,5120,0]
[null,"Y60","Midlands Commissioning Region","04V","NHS West Leicestershire CCG",1,10930,0.1]
[null,"Y60","Midlands Commissioning Region","06A","NHS Wolverhampton CCG",1,7515,0.1]
[null,"Y60","Midlands Commissioning Region","06D","NHS Wyre Forest CCG",7,3470,2]
[null,"Y61","East of England Commissioning Region","99E","NHS Basildon And Brentwood CCG",1,8730,0.1]
[null,"Y61","East of England Commissioning Region","06F","NHS Bedfordshire CCG",35,13560,2.6]
[null,"Y61","East of England Commissioning Region","06H","NHS Cambridgeshire And Peterborough CCG",9,24330,0.4]
[null,"Y61","East of England Commissioning Region","99F","NHS Castle Point And Rochford CCG",0,5435,0]
[null,"Y61","East of England Commissioning Region","06K","NHS East And North Hertfordshire CCG",5,15480,0.3]
[null,"Y61","East of England Commissioning Region","06M","NHS Great Yarmouth And Waveney CCG",0,7490,0]
[null,"Y61","East of England Commissioning Region","06N","NHS Herts Valleys CCG",17,16195,1]
[null,"Y61","East of England Commissioning Region","06L","NHS Ipswich And East Suffolk CCG",3,12100,0.2]
[null,"Y61","East of England Commissioning Region","06P","NHS Luton CCG",1,7215,0.1]
[null,"Y61","East of England Commissioning Region","06Q","NHS Mid Essex CCG",2,9250,0.2]
[null,"Y61","East of England Commissioning Region","04F","NHS Milton Keynes CCG",0,7985,0]
[null,"Y61","East of England Commissioning Region","06T","NHS North East Essex CCG",6,9505,0.6]
[null,"Y61","East of England Commissioning Region","06V","NHS North Norfolk CCG",0,5665,0]
[null,"Y61","East of England Commissioning Region","06W","NHS Norwich CCG",0,6155,0]
[null,"Y61","East of England Commissioning Region","06Y","NHS South Norfolk CCG",0,6745,0]
[null,"Y61","East of England Commissioning Region","99G","NHS Southend CCG",1,5300,0.2]
[null,"Y61","East of England Commissioning Region","07G","NHS Thurrock CCG",0,5155,0]
[null,"Y61","East of England Commissioning Region","07H","NHS West Essex CCG",13,8540,1.5]
[null,"Y61","East of England Commissioning Region","07J","NHS West Norfolk CCG",20,6625,{"$f":"IF(G146=\"*\",\"*\",IF(ISERROR(F146/G146*1000),\"N/A\",(ROUND(F146/G146*1000,1))))","v":3}]
[null,"Y61","East of England Commissioning Region","07K","NHS West Suffolk CCG",3,7460,0.4]
[null,"Y62","North West Commissioning Region","00Q","NHS Blackburn With Darwen CCG",0,4895,0]
[null,"Y62","North West Commissioning Region","00R","NHS Blackpool CCG",2,6330,0.3]
[null,"Y62","North West Commissioning Region","00T","NHS Bolton CCG",15,7570,2]
[null,"Y62","North West Commissioning Region","00V","NHS Bury CCG",2,6285,0.3]
[null,"Y62","North West Commissioning Region","00X","NHS Chorley And South Ribble CCG",15,5710,2.6]
[null,"Y62","North West Commissioning Region","01A","NHS East Lancashire CCG",8,11065,0.7]
[null,"Y62","North West Commissioning Region","01C","NHS Eastern Cheshire CCG",23,5220,4.4000000000000004]
[null,"Y62","North West Commissioning Region","02M","NHS Fylde And Wyre CCG",6,6350,0.9]
[null,"Y62","North West Commissioning Region","01E","NHS Greater Preston CCG",21,6290,3.3]
[null,"Y62","North West Commissioning Region","01F","NHS Halton CCG",2,4590,0.4]
[null,"Y62","North West Commissioning Region","01D","NHS Heywood, Middleton And Rochdale CCG",4,7305,0.5]
[null,"Y62","North West Commissioning Region","01J","NHS Knowsley CCG",0,6395,0]
[null,"Y62","North West Commissioning Region","99A","NHS Liverpool CCG",0,17010,0]
[null,"Y62","North West Commissioning Region","14L","NHS Manchester CCG",1,17435,0.1]
[null,"Y62","North West Commissioning Region","01K","NHS Morecambe Bay CCG",34,9515,3.6]
[null,"Y62","North West Commissioning Region","00Y","NHS Oldham CCG",17,7465,2.2999999999999998]
[null,"Y62","North West Commissioning Region","01G","NHS Salford CCG",1,8860,0.1]
[null,"Y62","North West Commissioning Region","01R","NHS South Cheshire CCG",0,5730,0]
[null,"Y62","North West Commissioning Region","01T","NHS South Sefton CCG",0,5865,0]
[null,"Y62","North West Commissioning Region","01V","NHS Southport And Formby CCG",11,4240,2.6]
[null,"Y62","North West Commissioning Region","01X","NHS St Helens CCG",0,6985,0]
[null,"Y62","North West Commissioning Region","01W","NHS Stockport CCG",3,9575,0.3]
[null,"Y62","North West Commissioning Region","01Y","NHS Tameside And Glossop CCG",1,7390,0.1]
[null,"Y62","North West Commissioning Region","02A","NHS Trafford CCG",1,7245,0.1]
[null,"Y62","North West Commissioning Region","02D","NHS Vale Royal CCG",0,3110,0]
[null,"Y62","North West Commissioning Region","02E","NHS Warrington CCG",6,5785,1]
[null,"Y62","North West Commissioning Region","02F","NHS West Cheshire CCG",3,8810,0.3]
[null,"Y62","North West Commissioning Region","02G","NHS West Lancashire CCG",7,3410,2.1]
[null,"Y62","North West Commissioning Region","02H","NHS Wigan Borough CCG",1,9490,0.1]
[null,"Y62","North West Commissioning Region","12F","NHS Wirral CCG",9,13205,0.7]
[null,"Y63","North East and Yorkshire Commissioning Region","02N","NHS Airedale, Wharfedale And Craven CCG",1,5340,0.2]
[null,"Y63","North East and Yorkshire Commissioning Region","02P","NHS Barnsley CCG",0,8825,0]
[null,"Y63","North East and Yorkshire Commissioning Region","02Q","NHS Bassetlaw CCG",0,3525,0]
[null,"Y63","North East and Yorkshire Commissioning Region","02W","NHS Bradford City CCG",0,4220,0]
[null,"Y63","North East and Yorkshire Commissioning Region","02R","NHS Bradford Districts CCG",0,11475,0]
[null,"Y63","North East and Yorkshire Commissioning Region","02T","NHS Calderdale CCG",0,6240,0]
[null,"Y63","North East and Yorkshire Commissioning Region","00C","NHS Darlington CCG",0,3120,0]
[null,"Y63","North East and Yorkshire Commissioning Region","02X","NHS Doncaster CCG",0,9980,0]
[null,"Y63","North East and Yorkshire Commissioning Region","00D","NHS Durham Dales, Easington And Sedgefield CCG",2,8730,0.2]
[null,"Y63","North East and Yorkshire Commissioning Region","02Y","NHS East Riding Of Yorkshire CCG",0,9315,0]
[null,"Y63","North East and Yorkshire Commissioning Region","03A","NHS Greater Huddersfield CCG",1,6360,0.2]
[null,"Y63","North East and Yorkshire Commissioning Region","03D","NHS Hambleton, Richmondshire And Whitby CCG",0,4080,0]
[null,"Y63","North East and Yorkshire Commissioning Region","03E","NHS Harrogate And Rural District CCG",1,4700,0.2]
[null,"Y63","North East and Yorkshire Commissioning Region","00K","NHS Hartlepool And Stockton-On-Tees CCG",0,10205,0]
[null,"Y63","North East and Yorkshire Commissioning Region","03F","NHS Hull CCG",0,8215,0]
[null,"Y63","North East and Yorkshire Commissioning Region","15F","NHS Leeds CCG",4,18525,0.2]
[null,"Y63","North East and Yorkshire Commissioning Region","13T","NHS Newcastle Gateshead CCG",0,16435,0]
[null,"Y63","North East and Yorkshire Commissioning Region","01H","NHS North Cumbria CCG",0,8330,0]
[null,"Y63","North East and Yorkshire Commissioning Region","00J","NHS North Durham CCG",0,7160,0]
[null,"Y63","North East and Yorkshire Commissioning Region","03H","NHS North East Lincolnshire CCG",0,4550,0]
[null,"Y63","North East and Yorkshire Commissioning Region","03J","NHS North Kirklees CCG",0,5695,0]
[null,"Y63","North East and Yorkshire Commissioning Region","03K","NHS North Lincolnshire CCG",0,5170,0]
[null,"Y63","North East and Yorkshire Commissioning Region","99C","NHS North Tyneside CCG",0,7410,0]
[null,"Y63","North East and Yorkshire Commissioning Region","00L","NHS Northumberland CCG",0,11240,0]
[null,"Y63","North East and Yorkshire Commissioning Region","03L","NHS Rotherham CCG",0,8100,0]
[null,"Y63","North East and Yorkshire Commissioning Region","03M","NHS Scarborough And Ryedale CCG",0,4500,0]
[null,"Y63","North East and Yorkshire Commissioning Region","03N","NHS Sheffield CCG",0,17920,0]
[null,"Y63","North East and Yorkshire Commissioning Region","00M","NHS South Tees CCG",2,9350,0.2]
[null,"Y63","North East and Yorkshire Commissioning Region","00N","NHS South Tyneside CCG",0,5530,0]
[null,"Y63","North East and Yorkshire Commissioning Region","00P","NHS Sunderland CCG",0,8910,0]
[null,"Y63","North East and Yorkshire Commissioning Region","03Q","NHS Vale Of York CCG",0,11480,0]
[null,"Y63","North East and Yorkshire Commissioning Region","03R","NHS Wakefield CCG",0,12000,0]
[]
[null,"Notes:"]
[null,"1. In September 2019 a revised policy, \"Delivering same-sex accommodation\" was published. Data providers were asked to ensure reporting of MSA breaches for the purposes of this collection were in line with the revised policy by January 2020. This transition period allows providers to make appropriate changes to enable them to report on this basis. As such this may impact on data quality for September - December 2019 data. Providers should all be reporting consistently and as per the updated guidance by January 2020. "]
[]
[null,"2. Finished Consultant Episode (FCE) data from Hospital Episode Statistics (HES) are used to calculate the MSA breach rate (for further details on methodology of this calculation see footnote 2). The FCE data presented here are a snapshot of latest HES data available at the time of the MSA publication for the relevant data period (due to timings of HES publication in some months this will represent \"final\" HES data, however for some months this is \"provisional\" HES data). These are used solely for the purposes of calculating an MSA breach rate to allow comparisons across providers and of change over time.\n\nFrom 2017/18 onwards, at the point of publication of MSA revisions (every 6 months), the FCE denominator is updated to reflect final HES data where available so is subject to change and may not always match the published HES timeseries (where provisional data is updated on a monthly basis).  The official and most recent timeseries of HES data is available on the NHS Digital website which will reflect any more recent updates to the provisional HES FCE data. https://digital.nhs.uk/data-and-information/publications/statistical/hospital-episode-statistics-for-admitted-patient-care-outpatient-and-accident-and-emergency-data\n\nProvider level HES FCE data is suppressed in accordance with HES disclosure control methodology.\nhttps://digital.nhs.uk/binaries/content/assets/website-assets/data-and-information/data-tools-and-services/data-services/hospital-episode-statistics/hes_analysis_guide_september_2018-v1.1.pdf\n\nHES Disclosure Control\nIn order to protect patient confidentiality '*' appears in the table above for all sub-national breakdowns, where it is possible to calculate a value between 1 and 7 from the data presented. All other sub-national data has been rounded to the nearest 5.\n\nIf the national total is between 1 and 7 (inclusive), no sub-national breakdown will be displayed. \n\nIf the national total is greater than or equal to 8;\na. Sub-national counts between 1 and 7 (inclusive) will be displayed as ’*’.\nb. Zeroes will be unchanged.\nc. All other counts will be rounded to the nearest 5."]
[]
[null,"3. The MSA breach rate is the number of MSA breaches, per 1,000 finished consultant episodes. Due to timeliness of HES data, there is one year’s lag in the denominator data, compared to the MSA breaches. For example, the breach rate for June 2019 is calculated by dividing the total MSA breaches in June 2019 (numerator) by the number of Finished Consultant Episodes in June 2018 (denominator). As such, it is only an estimation. Please see Breach Rate methodology paper for further information via: http://www.england.nhs.uk/statistics/mixed-sex-accommodation/\n\nWhen calculating rates or percentages at regional level using HES data;\n1) Where the numerator or denominator is between 1 and 7 (inclusive), no percentage or rate is calculated, and a ’*’ will be displayed.\n2) Where the numerator is zero, the percentage will be 0%.\n3) Where the unrounded numerator and denominator are greater than or equal to 8, a percentage or rate is calculated using the rounded numerator or denominator.\n4).Where no denominator data is available, no percentage or rate is calculated, and ’N/A’ will be displayed."]
[]
[null,"4. From January 2020 publication (November 2019 data) onwards breaches for Non-English commissioned patients are excluded."]
[]
[null,"5. Sandwell and West Birmingham Hospitals NHS Trust (RXK) and Epsom and St Helier University Hospitals Trust (RVR) did not submit data for December 2019 due to data quality issues. "]

{"sheet":"Notes","index":5,"n_rows":40,"n_cols":2,"rows_kept":40,"cut":false,"hidden":false,"merged":[]}
[]
[]
[]
[]
[]
[]
[]
[]
[]
[]
[]
[]
[]
[]
[]
[]
[]
[]
[]
[]
[]
[]
[]
[]
[]
[]
[]
[]
[]
[]
[]
[]
[]
[]
[]
[]
[]
[]
[1,"https://improvement.nhs.uk/documents/6005/Delivering_same_sex_accommodation_sep2019.pdf"]
[2,"https://www.england.nhs.uk/statistics/wp-content/uploads/sites/2/2019/10/MSA-Guidance-v1.5.pdf"]